{"text_format":"3","workbook":"xlsx","n_sheets":4,"sheets":["REZIME BUDŽETA DO OVOG DATUMA","REZIME MESEČNIH TROŠKOVA","TROŠKOVI PO STAVKAMA","DOBROTV. AKCIJE I SPONZORSTVA"],"not_rendered":{"images":1,"defined_names":15},"read":"whole","date_system":"1900"}

{"sheet":"REZIME BUDŽETA DO OVOG DATUMA","index":0,"n_rows":16,"n_cols":7,"rows_kept":16,"merged":[[1,1,1,4]]}
[]
[null,"STVARNO U ODNOSU NA BUDŽET DO OVOG DATUMA",{"$nulls":3},"GODINA",{"$f":"YEAR(TODAY())","v":2019}]
[null,"G/L kôd","Naslov naloga","Stvarno","Budžet","Preostalo RSD","Preostalo %"]
[null,1000,"Reklamiranje",{"$f":"SUMIF(RezimeMesečnihTroškova[G/L kôd],TabelaDoOvogDatuma[[#This Row],[G/L kôd]],RezimeMesečnihTroškova[Zbir])","v":{"v":0,"d":"0.00 RSD"}},{"v":100000,"d":"100,000.00 RSD"},{"$f":"IF(TabelaDoOvogDatuma[[#This Row],[Budžet]]=\"\",\"\",TabelaDoOvogDatuma[[#This Row],[Budžet]]-TabelaDoOvogDatuma[[#This Row],[Stvarno]])","v":{"v":100000,"d":"100,000.00 RSD"}},{"$f":"IFERROR(TabelaDoOvogDatuma[[#This Row],[Preostalo RSD]]/TabelaDoOvogDatuma[[#This Row],[Budžet]],\"\")","v":{"v":1,"d":"100.00%"}}]
[null,2000,"Kancelarijska oprema",{"$f":"SUMIF(RezimeMesečnihTroškova[G/L kôd],TabelaDoOvogDatuma[[#This Row],[G/L kôd]],RezimeMesečnihTroškova[Zbir])","v":{"v":0,"d":"0.00 RSD"}},{"v":100000,"d":"100,000.00 RSD"},{"$f":"IF(TabelaDoOvogDatuma[[#This Row],[Budžet]]=\"\",\"\",TabelaDoOvogDatuma[[#This Row],[Budžet]]-TabelaDoOvogDatuma[[#This Row],[Stvarno]])","v":{"v":100000,"d":"100,000.00 RSD"}},{"$f":"IFERROR(TabelaDoOvogDatuma[[#This Row],[Preostalo RSD]]/TabelaDoOvogDatuma[[#This Row],[Budžet]],\"\")","v":{"v":1,"d":"100.00%"}}]
[null,3000,"Štampači",{"$f":"SUMIF(RezimeMesečnihTroškova[G/L kôd],TabelaDoOvogDatuma[[#This Row],[G/L kôd]],RezimeMesečnihTroškova[Zbir])","v":{"v":0,"d":"0.00 RSD"}},{"v":100000,"d":"100,000.00 RSD"},{"$f":"IF(TabelaDoOvogDatuma[[#This Row],[Budžet]]=\"\",\"\",TabelaDoOvogDatuma[[#This Row],[Budžet]]-TabelaDoOvogDatuma[[#This Row],[Stvarno]])","v":{"v":100000,"d":"100,000.00 RSD"}},{"$f":"IFERROR(TabelaDoOvogDatuma[[#This Row],[Preostalo RSD]]/TabelaDoOvogDatuma[[#This Row],[Budžet]],\"\")","v":{"v":1,"d":"100.00%"}}]
[null,4000,"Troškovi servera",{"$f":"SUMIF(RezimeMesečnihTroškova[G/L kôd],TabelaDoOvogDatuma[[#This Row],[G/L kôd]],RezimeMesečnihTroškova[Zbir])","v":{"v":0,"d":"0.00 RSD"}},{"v":100000,"d":"100,000.00 RSD"},{"$f":"IF(TabelaDoOvogDatuma[[#This Row],[Budžet]]=\"\",\"\",TabelaDoOvogDatuma[[#This Row],[Budžet]]-TabelaDoOvogDatuma[[#This Row],[Stvarno]])","v":{"v":100000,"d":"100,000.00 RSD"}},{"$f":"IFERROR(TabelaDoOvogDatuma[[#This Row],[Preostalo RSD]]/TabelaDoOvogDatuma[[#This Row],[Budžet]],\"\")","v":{"v":1,"d":"100.00%"}}]
[null,5000,"Pribor",{"$f":"SUMIF(RezimeMesečnihTroškova[G/L kôd],TabelaDoOvogDatuma[[#This Row],[G/L kôd]],RezimeMesečnihTroškova[Zbir])","v":{"v":0,"d":"0.00 RSD"}},{"v":50000,"d":"50,000.00 RSD"},{"$f":"IF(TabelaDoOvogDatuma[[#This Row],[Budžet]]=\"\",\"\",TabelaDoOvogDatuma[[#This Row],[Budžet]]-TabelaDoOvogDatuma[[#This Row],[Stvarno]])","v":{"v":50000,"d":"50,000.00 RSD"}},{"$f":"IFERROR(TabelaDoOvogDatuma[[#This Row],[Preostalo RSD]]/TabelaDoOvogDatuma[[#This Row],[Budžet]],\"\")","v":{"v":1,"d":"100.00%"}}]
[null,6000,"Troškovi klijenata",{"$f":"SUMIF(RezimeMesečnihTroškova[G/L kôd],TabelaDoOvogDatuma[[#This Row],[G/L kôd]],RezimeMesečnihTroškova[Zbir])","v":{"v":0,"d":"0.00 RSD"}},{"v":25000,"d":"25,000.00 RSD"},{"$f":"IF(TabelaDoOvogDatuma[[#This Row],[Budžet]]=\"\",\"\",TabelaDoOvogDatuma[[#This Row],[Budžet]]-TabelaDoOvogDatuma[[#This Row],[Stvarno]])","v":{"v":25000,"d":"25,000.00 RSD"}},{"$f":"IFERROR(TabelaDoOvogDatuma[[#This Row],[Preostalo RSD]]/TabelaDoOvogDatuma[[#This Row],[Budžet]],\"\")","v":{"v":1,"d":"100.00%"}}]
[null,7000,"Računari",{"$f":"SUMIF(RezimeMesečnihTroškova[G/L kôd],TabelaDoOvogDatuma[[#This Row],[G/L kôd]],RezimeMesečnihTroškova[Zbir])","v":{"v":0,"d":"0.00 RSD"}},{"v":75000,"d":"75,000.00 RSD"},{"$f":"IF(TabelaDoOvogDatuma[[#This Row],[Budžet]]=\"\",\"\",TabelaDoOvogDatuma[[#This Row],[Budžet]]-TabelaDoOvogDatuma[[#This Row],[Stvarno]])","v":{"v":75000,"d":"75,000.00 RSD"}},{"$f":"IFERROR(TabelaDoOvogDatuma[[#This Row],[Preostalo RSD]]/TabelaDoOvogDatuma[[#This Row],[Budžet]],\"\")","v":{"v":1,"d":"100.00%"}}]
[null,8000,"Zdravstveni plan",{"$f":"SUMIF(RezimeMesečnihTroškova[G/L kôd],TabelaDoOvogDatuma[[#This Row],[G/L kôd]],RezimeMesečnihTroškova[Zbir])","v":{"v":0,"d":"0.00 RSD"}},{"v":65000,"d":"65,000.00 RSD"},{"$f":"IF(TabelaDoOvogDatuma[[#This Row],[Budžet]]=\"\",\"\",TabelaDoOvogDatuma[[#This Row],[Budžet]]-TabelaDoOvogDatuma[[#This Row],[Stvarno]])","v":{"v":65000,"d":"65,000.00 RSD"}},{"$f":"IFERROR(TabelaDoOvogDatuma[[#This Row],[Preostalo RSD]]/TabelaDoOvogDatuma[[#This Row],[Budžet]],\"\")","v":{"v":1,"d":"100.00%"}}]
[null,9000,"Troškovi izgradnje",{"$f":"SUMIF(RezimeMesečnihTroškova[G/L kôd],TabelaDoOvogDatuma[[#This Row],[G/L kôd]],RezimeMesečnihTroškova[Zbir])","v":{"v":0,"d":"0.00 RSD"}},{"v":125000,"d":"125,000.00 RSD"},{"$f":"IF(TabelaDoOvogDatuma[[#This Row],[Budžet]]=\"\",\"\",TabelaDoOvogDatuma[[#This Row],[Budžet]]-TabelaDoOvogDatuma[[#This Row],[Stvarno]])","v":{"v":125000,"d":"125,000.00 RSD"}},{"$f":"IFERROR(TabelaDoOvogDatuma[[#This Row],[Preostalo RSD]]/TabelaDoOvogDatuma[[#This Row],[Budžet]],\"\")","v":{"v":1,"d":"100.00%"}}]
[null,10000,"Marketing",{"$f":"SUMIF(RezimeMesečnihTroškova[G/L kôd],TabelaDoOvogDatuma[[#This Row],[G/L kôd]],RezimeMesečnihTroškova[Zbir])","v":{"v":0,"d":"0.00 RSD"}},{"v":100000,"d":"100,000.00 RSD"},{"$f":"IF(TabelaDoOvogDatuma[[#This Row],[Budžet]]=\"\",\"\",TabelaDoOvogDatuma[[#This Row],[Budžet]]-TabelaDoOvogDatuma[[#This Row],[Stvarno]])","v":{"v":100000,"d":"100,000.00 RSD"}},{"$f":"IFERROR(TabelaDoOvogDatuma[[#This Row],[Preostalo RSD]]/TabelaDoOvogDatuma[[#This Row],[Budžet]],\"\")","v":{"v":1,"d":"100.00%"}}]
[null,11000,"Dobrotvorne akcije",{"$f":"SUMIF(RezimeMesečnihTroškova[G/L kôd],TabelaDoOvogDatuma[[#This Row],[G/L kôd]],RezimeMesečnihTroškova[Zbir])","v":{"v":0,"d":"0.00 RSD"}},{"v":250000,"d":"250,000.00 RSD"},{"$f":"IF(TabelaDoOvogDatuma[[#This Row],[Budžet]]=\"\",\"\",TabelaDoOvogDatuma[[#This Row],[Budžet]]-TabelaDoOvogDatuma[[#This Row],[Stvarno]])","v":{"v":250000,"d":"250,000.00 RSD"}},{"$f":"IFERROR(TabelaDoOvogDatuma[[#This Row],[Preostalo RSD]]/TabelaDoOvogDatuma[[#This Row],[Budžet]],\"\")","v":{"v":1,"d":"100.00%"}}]
[null,12000,"Sponzorstva",{"$f":"SUMIF(RezimeMesečnihTroškova[G/L kôd],TabelaDoOvogDatuma[[#This Row],[G/L kôd]],RezimeMesečnihTroškova[Zbir])","v":{"v":0,"d":"0.00 RSD"}},{"v":50000,"d":"50,000.00 RSD"},{"$f":"IF(TabelaDoOvogDatuma[[#This Row],[Budžet]]=\"\",\"\",TabelaDoOvogDatuma[[#This Row],[Budžet]]-TabelaDoOvogDatuma[[#This Row],[Stvarno]])","v":{"v":50000,"d":"50,000.00 RSD"}},{"$f":"IFERROR(TabelaDoOvogDatuma[[#This Row],[Preostalo RSD]]/TabelaDoOvogDatuma[[#This Row],[Budžet]],\"\")","v":{"v":1,"d":"100.00%"}}]
[null,"Zbir",null,{"$f":"SUBTOTAL(109,TabelaDoOvogDatuma[Stvarno])","v":{"v":0,"d":"0.00 RSD"}},{"$f":"SUBTOTAL(109,TabelaDoOvogDatuma[Budžet])","v":{"v":1140000,"d":"1,140,000.00 RSD"}},{"$f":"SUBTOTAL(109,TabelaDoOvogDatuma[Preostalo RSD])","v":{"v":1140000,"d":"1,140,000.00 RSD"}},{"$f":"TabelaDoOvogDatuma[[#Totals],[Preostalo RSD]]/TabelaDoOvogDatuma[[#Totals],[Budžet]]","v":{"v":1,"d":"100.00%"}}]

{"sheet":"REZIME MESEČNIH TROŠKOVA","index":1,"n_rows":18,"n_cols":17,"rows_kept":18,"merged":[[1,1,1,16]]}
[]
[null,"REZIME MESEČNIH TROŠKOVA"]
[null,"Segmentator za filtriranje podataka po naslovima naloga nalazi se u ovoj ćeliji.",null,{"$f":"DATEVALUE(\"1-JAN\"&_GODINA)","v":{"v":43466,"d":"4346600.00%"}},{"$f":"DATEVALUE(\"1-FEB\"&_GODINA)","v":{"v":43497,"d":"4349700.00%"}},{"$f":"DATEVALUE(\"1-MAR\"&_GODINA)","v":{"v":43525,"d":"4352500.00%"}},{"$f":"DATEVALUE(\"1-APR\"&_GODINA)","v":{"v":43556,"d":"4355600.00%"}},{"$f":"DATEVALUE(\"1-MAJ\"&_GODINA)","v":{"v":43586,"d":"4358600.00%"}},{"$f":"DATEVALUE(\"1-JUN\"&_GODINA)","v":{"v":43617,"d":"4361700.00%"}},{"$f":"DATEVALUE(\"1-JUL\"&_GODINA)","v":{"v":43647,"d":"4364700.00%"}},{"$f":"DATEVALUE(\"1-AVG\"&_GODINA)","v":{"v":43678,"d":"4367800.00%"}},{"$f":"DATEVALUE(\"1-SEP\"&_GODINA)","v":{"v":43709,"d":"4370900.00%"}},{"$f":"DATEVALUE(\"1-OKT\"&_GODINA)","v":{"v":43739,"d":"4373900.00%"}},{"$f":"DATEVALUE(\"1-NOV\"&_GODINA)","v":{"v":43770,"d":"4377000.00%"}},{"$f":"DATEVALUE(\"1-DEC\"&_GODINA)","v":{"v":43800,"d":"4380000.00%"}}]
[{"$nulls":3},{"$f":"EOMONTH(D3,0)","v":{"v":43496,"d":"4349600.00%"}},{"$f":"EOMONTH(E3,0)","v":{"v":43524,"d":"4352400.00%"}},{"$f":"EOMONTH(F3,0)","v":{"v":43555,"d":"4355500.00%"}},{"$f":"EOMONTH(G3,0)","v":{"v":43585,"d":"4358500.00%"}},{"$f":"EOMONTH(H3,0)","v":{"v":43616,"d":"4361600.00%"}},{"$f":"EOMONTH(I3,0)","v":{"v":43646,"d":"4364600.00%"}},{"v":43677,"d":"4367700.00%"},{"v":43708,"d":"4370800.00%"},{"v":43738,"d":"4373800.00%"},{"v":43769,"d":"4376900.00%"},{"v":43799,"d":"4379900.00%"},{"v":43830,"d":"4383000.00%"}]
[null,"G/L kôd","Naslov naloga","januar","Februar","Mart","April","Maj","Jun","Jul","Avgust","Septembar","Oktobar","Novembar","decembar","Zbir"," "]
[null,1000,"Reklamiranje",{"$f":"SUMIFS(TroškoviPoStavkama[Proverite iznos],TroškoviPoStavkama[G/L kôd],RezimeMesečnihTroškova[[#This Row],[G/L kôd]],TroškoviPoStavkama[Datum fakture],\">=\"&D$3,TroškoviPoStavkama[Datum fakture],\"<=\"&D$4)+SUMIFS(Drugo[Proverite iznos],Drugo[G/L kôd],RezimeMesečnihTroškova[[#This Row],[G/L kôd]],Drugo[Pokrenut je zahtev za proveru datuma],\">=\"&DATEVALUE(\" 1 \"&RezimeMesečnihTroškova[[#Headers],[januar]]&_GODINA),Drugo[Pokrenut je zahtev za proveru datuma],\"<=\"&D$4)","v":{"v":0,"d":"0.00 RSD"}},{"$f":"SUMIFS(TroškoviPoStavkama[Proverite iznos],TroškoviPoStavkama[G/L kôd],RezimeMesečnihTroškova[[#This Row],[G/L kôd]],TroškoviPoStavkama[Datum fakture],\">=\"&E$3,TroškoviPoStavkama[Datum fakture],\"<=\"&E$4)+SUMIFS(Drugo[Proverite iznos],Drugo[G/L kôd],RezimeMesečnihTroškova[[#This Row],[G/L kôd]],Drugo[Pokrenut je zahtev za proveru datuma],\">=\"&DATEVALUE(\" 1 \"&RezimeMesečnihTroškova[[#Headers],[Februar]]&_GODINA),Drugo[Pokrenut je zahtev za proveru datuma],\"<=\"&E$4)","v":{"v":0,"d":"0.00 RSD"}},{"$f":"SUMIFS(TroškoviPoStavkama[Proverite iznos],TroškoviPoStavkama[G/L kôd],RezimeMesečnihTroškova[[#This Row],[G/L kôd]],TroškoviPoStavkama[Datum fakture],\">=\"&F$3,TroškoviPoStavkama[Datum fakture],\"<=\"&F$4)+SUMIFS(Drugo[Proverite iznos],Drugo[G/L kôd],RezimeMesečnihTroškova[[#This Row],[G/L kôd]],Drugo[Pokrenut je zahtev za proveru datuma],\">=\"&DATEVALUE(\" 1 \"&RezimeMesečnihTroškova[[#Headers],[Mart]]&_GODINA),Drugo[Pokrenut je zahtev za proveru datuma],\"<=\"&F$4)","v":{"v":0,"d":"0.00 RSD"}},{"$f":"SUMIFS(TroškoviPoStavkama[Proverite iznos],TroškoviPoStavkama[G/L kôd],RezimeMesečnihTroškova[[#This Row],[G/L kôd]],TroškoviPoStavkama[Datum fakture],\">=\"&G$3,TroškoviPoStavkama[Datum fakture],\"<=\"&G$4)+SUMIFS(Drugo[Proverite iznos],Drugo[G/L kôd],RezimeMesečnihTroškova[[#This Row],[G/L kôd]],Drugo[Pokrenut je zahtev za proveru datuma],\">=\"&DATEVALUE(\" 1 \"&RezimeMesečnihTroškova[[#Headers],[April]]&_GODINA),Drugo[Pokrenut je zahtev za proveru datuma],\"<=\"&G$4)","v":{"v":0,"d":"0.00 RSD"}},{"$f":"SUMIFS(TroškoviPoStavkama[Proverite iznos],TroškoviPoStavkama[G/L kôd],RezimeMesečnihTroškova[[#This Row],[G/L kôd]],TroškoviPoStavkama[Datum fakture],\">=\"&H$3,TroškoviPoStavkama[Datum fakture],\"<=\"&H$4)+SUMIFS(Drugo[Proverite iznos],Drugo[G/L kôd],RezimeMesečnihTroškova[[#This Row],[G/L kôd]],Drugo[Pokrenut je zahtev za proveru datuma],\">=\"&DATEVALUE(\" 1 \"&RezimeMesečnihTroškova[[#Headers],[Maj]]&_GODINA),Drugo[Pokrenut je zahtev za proveru datuma],\"<=\"&H$4)","v":{"v":0,"d":"0.00 RSD"}},{"$f":"SUMIFS(TroškoviPoStavkama[Proverite iznos],TroškoviPoStavkama[G/L kôd],RezimeMesečnihTroškova[[#This Row],[G/L kôd]],TroškoviPoStavkama[Datum fakture],\">=\"&I$3,TroškoviPoStavkama[Datum fakture],\"<=\"&I$4)+SUMIFS(Drugo[Proverite iznos],Drugo[G/L kôd],RezimeMesečnihTroškova[[#This Row],[G/L kôd]],Drugo[Pokrenut je zahtev za proveru datuma],\">=\"&DATEVALUE(\" 1 \"&RezimeMesečnihTroškova[[#Headers],[Jun]]&_GODINA),Drugo[Pokrenut je zahtev za proveru datuma],\"<=\"&I$4)","v":{"v":0,"d":"0.00 RSD"}},{"$f":"SUMIFS(TroškoviPoStavkama[Proverite iznos],TroškoviPoStavkama[G/L kôd],RezimeMesečnihTroškova[[#This Row],[G/L kôd]],TroškoviPoStavkama[Datum fakture],\">=\"&J$3,TroškoviPoStavkama[Datum fakture],\"<=\"&J$4)+SUMIFS(Drugo[Proverite iznos],Drugo[G/L kôd],RezimeMesečnihTroškova[[#This Row],[G/L kôd]],Drugo[Pokrenut je zahtev za proveru datuma],\">=\"&DATEVALUE(\" 1 \"&RezimeMesečnihTroškova[[#Headers],[Jul]]&_GODINA),Drugo[Pokrenut je zahtev za proveru datuma],\"<=\"&J$4)","v":{"v":0,"d":"0.00 RSD"}},{"$f":"SUMIFS(TroškoviPoStavkama[Proverite iznos],TroškoviPoStavkama[G/L kôd],RezimeMesečnihTroškova[[#This Row],[G/L kôd]],TroškoviPoStavkama[Datum fakture],\">=\"&K$3,TroškoviPoStavkama[Datum fakture],\"<=\"&K$4)+SUMIFS(Drugo[Proverite iznos],Drugo[G/L kôd],RezimeMesečnihTroškova[[#This Row],[G/L kôd]],Drugo[Pokrenut je zahtev za proveru datuma],\">=\"&DATEVALUE(\" 1 \"&RezimeMesečnihTroškova[[#Headers],[Avgust]]&_GODINA),Drugo[Pokrenut je zahtev za proveru datuma],\"<=\"&K$4)","v":{"v":0,"d":"0.00 RSD"}},{"$f":"SUMIFS(TroškoviPoStavkama[Proverite iznos],TroškoviPoStavkama[G/L kôd],RezimeMesečnihTroškova[[#This Row],[G/L kôd]],TroškoviPoStavkama[Datum fakture],\">=\"&L$3,TroškoviPoStavkama[Datum fakture],\"<=\"&L$4)+SUMIFS(Drugo[Proverite iznos],Drugo[G/L kôd],RezimeMesečnihTroškova[[#This Row],[G/L kôd]],Drugo[Pokrenut je zahtev za proveru datuma],\">=\"&DATEVALUE(\" 1 \"&RezimeMesečnihTroškova[[#Headers],[Septembar]]&_GODINA),Drugo[Pokrenut je zahtev za proveru datuma],\"<=\"&L$4)","v":{"v":0,"d":"0.00 RSD"}},{"$f":"SUMIFS(TroškoviPoStavkama[Proverite iznos],TroškoviPoStavkama[G/L kôd],RezimeMesečnihTroškova[[#This Row],[G/L kôd]],TroškoviPoStavkama[Datum fakture],\">=\"&M$3,TroškoviPoStavkama[Datum fakture],\"<=\"&M$4)+SUMIFS(Drugo[Proverite iznos],Drugo[G/L kôd],RezimeMesečnihTroškova[[#This Row],[G/L kôd]],Drugo[Pokrenut je zahtev za proveru datuma],\">=\"&DATEVALUE(\" 1 \"&RezimeMesečnihTroškova[[#Headers],[Oktobar]]&_GODINA),Drugo[Pokrenut je zahtev za proveru datuma],\"<=\"&M$4)","v":{"v":0,"d":"0.00 RSD"}},{"$f":"SUMIFS(TroškoviPoStavkama[Proverite iznos],TroškoviPoStavkama[G/L kôd],RezimeMesečnihTroškova[[#This Row],[G/L kôd]],TroškoviPoStavkama[Datum fakture],\">=\"&N$3,TroškoviPoStavkama[Datum fakture],\"<=\"&N$4)+SUMIFS(Drugo[Proverite iznos],Drugo[G/L kôd],RezimeMesečnihTroškova[[#This Row],[G/L kôd]],Drugo[Pokrenut je zahtev za proveru datuma],\">=\"&DATEVALUE(\" 1 \"&RezimeMesečnihTroškova[[#Headers],[Novembar]]&_GODINA),Drugo[Pokrenut je zahtev za proveru datuma],\"<=\"&N$4)","v":{"v":0,"d":"0.00 RSD"}},{"$f":"SUMIFS(TroškoviPoStavkama[Proverite iznos],TroškoviPoStavkama[G/L kôd],RezimeMesečnihTroškova[[#This Row],[G/L kôd]],TroškoviPoStavkama[Datum fakture],\">=\"&O$3,TroškoviPoStavkama[Datum fakture],\"<=\"&O$4)+SUMIFS(Drugo[Proverite iznos],Drugo[G/L kôd],RezimeMesečnihTroškova[[#This Row],[G/L kôd]],Drugo[Pokrenut je zahtev za proveru datuma],\">=\"&DATEVALUE(\" 1 \"&RezimeMesečnihTroškova[[#Headers],[decembar]]&_GODINA),Drugo[Pokrenut je zahtev za proveru datuma],\"<=\"&O$4)","v":{"v":0,"d":"0.00 RSD"}},{"$f":"SUM(RezimeMesečnihTroškova[[#This Row],[januar]:[decembar]])","v":{"v":0,"d":"0.00 RSD"}}]
[null,2000,"Kancelarijska oprema",{"$f":"SUMIFS(TroškoviPoStavkama[Proverite iznos],TroškoviPoStavkama[G/L kôd],RezimeMesečnihTroškova[[#This Row],[G/L kôd]],TroškoviPoStavkama[Datum fakture],\">=\"&D$3,TroškoviPoStavkama[Datum fakture],\"<=\"&D$4)+SUMIFS(Drugo[Proverite iznos],Drugo[G/L kôd],RezimeMesečnihTroškova[[#This Row],[G/L kôd]],Drugo[Pokrenut je zahtev za proveru datuma],\">=\"&DATEVALUE(\" 1 \"&RezimeMesečnihTroškova[[#Headers],[januar]]&_GODINA),Drugo[Pokrenut je zahtev za proveru datuma],\"<=\"&D$4)","v":{"v":0,"d":"0.00 RSD"}},{"$f":"SUMIFS(TroškoviPoStavkama[Proverite iznos],TroškoviPoStavkama[G/L kôd],RezimeMesečnihTroškova[[#This Row],[G/L kôd]],TroškoviPoStavkama[Datum fakture],\">=\"&E$3,TroškoviPoStavkama[Datum fakture],\"<=\"&E$4)+SUMIFS(Drugo[Proverite iznos],Drugo[G/L kôd],RezimeMesečnihTroškova[[#This Row],[G/L kôd]],Drugo[Pokrenut je zahtev za proveru datuma],\">=\"&DATEVALUE(\" 1 \"&RezimeMesečnihTroškova[[#Headers],[Februar]]&_GODINA),Drugo[Pokrenut je zahtev za proveru datuma],\"<=\"&E$4)","v":{"v":0,"d":"0.00 RSD"}},{"$f":"SUMIFS(TroškoviPoStavkama[Proverite iznos],TroškoviPoStavkama[G/L kôd],RezimeMesečnihTroškova[[#This Row],[G/L kôd]],TroškoviPoStavkama[Datum fakture],\">=\"&F$3,TroškoviPoStavkama[Datum fakture],\"<=\"&F$4)+SUMIFS(Drugo[Proverite iznos],Drugo[G/L kôd],RezimeMesečnihTroškova[[#This Row],[G/L kôd]],Drugo[Pokrenut je zahtev za proveru datuma],\">=\"&DATEVALUE(\" 1 \"&RezimeMesečnihTroškova[[#Headers],[Mart]]&_GODINA),Drugo[Pokrenut je zahtev za proveru datuma],\"<=\"&F$4)","v":{"v":0,"d":"0.00 RSD"}},{"$f":"SUMIFS(TroškoviPoStavkama[Proverite iznos],TroškoviPoStavkama[G/L kôd],RezimeMesečnihTroškova[[#This Row],[G/L kôd]],TroškoviPoStavkama[Datum fakture],\">=\"&G$3,TroškoviPoStavkama[Datum fakture],\"<=\"&G$4)+SUMIFS(Drugo[Proverite iznos],Drugo[G/L kôd],RezimeMesečnihTroškova[[#This Row],[G/L kôd]],Drugo[Pokrenut je zahtev za proveru datuma],\">=\"&DATEVALUE(\" 1 \"&RezimeMesečnihTroškova[[#Headers],[April]]&_GODINA),Drugo[Pokrenut je zahtev za proveru datuma],\"<=\"&G$4)","v":{"v":0,"d":"0.00 RSD"}},{"$f":"SUMIFS(TroškoviPoStavkama[Proverite iznos],TroškoviPoStavkama[G/L kôd],RezimeMesečnihTroškova[[#This Row],[G/L kôd]],TroškoviPoStavkama[Datum fakture],\">=\"&H$3,TroškoviPoStavkama[Datum fakture],\"<=\"&H$4)+SUMIFS(Drugo[Proverite iznos],Drugo[G/L kôd],RezimeMesečnihTroškova[[#This Row],[G/L kôd]],Drugo[Pokrenut je zahtev za proveru datuma],\">=\"&DATEVALUE(\" 1 \"&RezimeMesečnihTroškova[[#Headers],[Maj]]&_GODINA),Drugo[Pokrenut je zahtev za proveru datuma],\"<=\"&H$4)","v":{"v":0,"d":"0.00 RSD"}},{"$f":"SUMIFS(TroškoviPoStavkama[Proverite iznos],TroškoviPoStavkama[G/L kôd],RezimeMesečnihTroškova[[#This Row],[G/L kôd]],TroškoviPoStavkama[Datum fakture],\">=\"&I$3,TroškoviPoStavkama[Datum fakture],\"<=\"&I$4)+SUMIFS(Drugo[Proverite iznos],Drugo[G/L kôd],RezimeMesečnihTroškova[[#This Row],[G/L kôd]],Drugo[Pokrenut je zahtev za proveru datuma],\">=\"&DATEVALUE(\" 1 \"&RezimeMesečnihTroškova[[#Headers],[Jun]]&_GODINA),Drugo[Pokrenut je zahtev za proveru datuma],\"<=\"&I$4)","v":{"v":0,"d":"0.00 RSD"}},{"$f":"SUMIFS(TroškoviPoStavkama[Proverite iznos],TroškoviPoStavkama[G/L kôd],RezimeMesečnihTroškova[[#This Row],[G/L kôd]],TroškoviPoStavkama[Datum fakture],\">=\"&J$3,TroškoviPoStavkama[Datum fakture],\"<=\"&J$4)+SUMIFS(Drugo[Proverite iznos],Drugo[G/L kôd],RezimeMesečnihTroškova[[#This Row],[G/L kôd]],Drugo[Pokrenut je zahtev za proveru datuma],\">=\"&DATEVALUE(\" 1 \"&RezimeMesečnihTroškova[[#Headers],[Jul]]&_GODINA),Drugo[Pokrenut je zahtev za proveru datuma],\"<=\"&J$4)","v":{"v":0,"d":"0.00 RSD"}},{"$f":"SUMIFS(TroškoviPoStavkama[Proverite iznos],TroškoviPoStavkama[G/L kôd],RezimeMesečnihTroškova[[#This Row],[G/L kôd]],TroškoviPoStavkama[Datum fakture],\">=\"&K$3,TroškoviPoStavkama[Datum fakture],\"<=\"&K$4)+SUMIFS(Drugo[Proverite iznos],Drugo[G/L kôd],RezimeMesečnihTroškova[[#This Row],[G/L kôd]],Drugo[Pokrenut je zahtev za proveru datuma],\">=\"&DATEVALUE(\" 1 \"&RezimeMesečnihTroškova[[#Headers],[Avgust]]&_GODINA),Drugo[Pokrenut je zahtev za proveru datuma],\"<=\"&K$4)","v":{"v":0,"d":"0.00 RSD"}},{"$f":"SUMIFS(TroškoviPoStavkama[Proverite iznos],TroškoviPoStavkama[G/L kôd],RezimeMesečnihTroškova[[#This Row],[G/L kôd]],TroškoviPoStavkama[Datum fakture],\">=\"&L$3,TroškoviPoStavkama[Datum fakture],\"<=\"&L$4)+SUMIFS(Drugo[Proverite iznos],Drugo[G/L kôd],RezimeMesečnihTroškova[[#This Row],[G/L kôd]],Drugo[Pokrenut je zahtev za proveru datuma],\">=\"&DATEVALUE(\" 1 \"&RezimeMesečnihTroškova[[#Headers],[Septembar]]&_GODINA),Drugo[Pokrenut je zahtev za proveru datuma],\"<=\"&L$4)","v":{"v":0,"d":"0.00 RSD"}},{"$f":"SUMIFS(TroškoviPoStavkama[Proverite iznos],TroškoviPoStavkama[G/L kôd],RezimeMesečnihTroškova[[#This Row],[G/L kôd]],TroškoviPoStavkama[Datum fakture],\">=\"&M$3,TroškoviPoStavkama[Datum fakture],\"<=\"&M$4)+SUMIFS(Drugo[Proverite iznos],Drugo[G/L kôd],RezimeMesečnihTroškova[[#This Row],[G/L kôd]],Drugo[Pokrenut je zahtev za proveru datuma],\">=\"&DATEVALUE(\" 1 \"&RezimeMesečnihTroškova[[#Headers],[Oktobar]]&_GODINA),Drugo[Pokrenut je zahtev za proveru datuma],\"<=\"&M$4)","v":{"v":0,"d":"0.00 RSD"}},{"$f":"SUMIFS(TroškoviPoStavkama[Proverite iznos],TroškoviPoStavkama[G/L kôd],RezimeMesečnihTroškova[[#This Row],[G/L kôd]],TroškoviPoStavkama[Datum fakture],\">=\"&N$3,TroškoviPoStavkama[Datum fakture],\"<=\"&N$4)+SUMIFS(Drugo[Proverite iznos],Drugo[G/L kôd],RezimeMesečnihTroškova[[#This Row],[G/L kôd]],Drugo[Pokrenut je zahtev za proveru datuma],\">=\"&DATEVALUE(\" 1 \"&RezimeMesečnihTroškova[[#Headers],[Novembar]]&_GODINA),Drugo[Pokrenut je zahtev za proveru datuma],\"<=\"&N$4)","v":{"v":0,"d":"0.00 RSD"}},{"$f":"SUMIFS(TroškoviPoStavkama[Proverite iznos],TroškoviPoStavkama[G/L kôd],RezimeMesečnihTroškova[[#This Row],[G/L kôd]],TroškoviPoStavkama[Datum fakture],\">=\"&O$3,TroškoviPoStavkama[Datum fakture],\"<=\"&O$4)+SUMIFS(Drugo[Proverite iznos],Drugo[G/L kôd],RezimeMesečnihTroškova[[#This Row],[G/L kôd]],Drugo[Pokrenut je zahtev za proveru datuma],\">=\"&DATEVALUE(\" 1 \"&RezimeMesečnihTroškova[[#Headers],[decembar]]&_GODINA),Drugo[Pokrenut je zahtev za proveru datuma],\"<=\"&O$4)","v":{"v":0,"d":"0.00 RSD"}},{"$f":"SUM(RezimeMesečnihTroškova[[#This Row],[januar]:[decembar]])","v":{"v":0,"d":"0.00 RSD"}}]
[null,3000,"Štampači",{"$f":"SUMIFS(TroškoviPoStavkama[Proverite iznos],TroškoviPoStavkama[G/L kôd],RezimeMesečnihTroškova[[#This Row],[G/L kôd]],TroškoviPoStavkama[Datum fakture],\">=\"&D$3,TroškoviPoStavkama[Datum fakture],\"<=\"&D$4)+SUMIFS(Drugo[Proverite iznos],Drugo[G/L kôd],RezimeMesečnihTroškova[[#This Row],[G/L kôd]],Drugo[Pokrenut je zahtev za proveru datuma],\">=\"&DATEVALUE(\" 1 \"&RezimeMesečnihTroškova[[#Headers],[januar]]&_GODINA),Drugo[Pokrenut je zahtev za proveru datuma],\"<=\"&D$4)","v":{"v":0,"d":"0.00 RSD"}},{"$f":"SUMIFS(TroškoviPoStavkama[Proverite iznos],TroškoviPoStavkama[G/L kôd],RezimeMesečnihTroškova[[#This Row],[G/L kôd]],TroškoviPoStavkama[Datum fakture],\">=\"&E$3,TroškoviPoStavkama[Datum fakture],\"<=\"&E$4)+SUMIFS(Drugo[Proverite iznos],Drugo[G/L kôd],RezimeMesečnihTroškova[[#This Row],[G/L kôd]],Drugo[Pokrenut je zahtev za proveru datuma],\">=\"&DATEVALUE(\" 1 \"&RezimeMesečnihTroškova[[#Headers],[Februar]]&_GODINA),Drugo[Pokrenut je zahtev za proveru datuma],\"<=\"&E$4)","v":{"v":0,"d":"0.00 RSD"}},{"$f":"SUMIFS(TroškoviPoStavkama[Proverite iznos],TroškoviPoStavkama[G/L kôd],RezimeMesečnihTroškova[[#This Row],[G/L kôd]],TroškoviPoStavkama[Datum fakture],\">=\"&F$3,TroškoviPoStavkama[Datum fakture],\"<=\"&F$4)+SUMIFS(Drugo[Proverite iznos],Drugo[G/L kôd],RezimeMesečnihTroškova[[#This Row],[G/L kôd]],Drugo[Pokrenut je zahtev za proveru datuma],\">=\"&DATEVALUE(\" 1 \"&RezimeMesečnihTroškova[[#Headers],[Mart]]&_GODINA),Drugo[Pokrenut je zahtev za proveru datuma],\"<=\"&F$4)","v":{"v":0,"d":"0.00 RSD"}},{"$f":"SUMIFS(TroškoviPoStavkama[Proverite iznos],TroškoviPoStavkama[G/L kôd],RezimeMesečnihTroškova[[#This Row],[G/L kôd]],TroškoviPoStavkama[Datum fakture],\">=\"&G$3,TroškoviPoStavkama[Datum fakture],\"<=\"&G$4)+SUMIFS(Drugo[Proverite iznos],Drugo[G/L kôd],RezimeMesečnihTroškova[[#This Row],[G/L kôd]],Drugo[Pokrenut je zahtev za proveru datuma],\">=\"&DATEVALUE(\" 1 \"&RezimeMesečnihTroškova[[#Headers],[April]]&_GODINA),Drugo[Pokrenut je zahtev za proveru datuma],\"<=\"&G$4)","v":{"v":0,"d":"0.00 RSD"}},{"$f":"SUMIFS(TroškoviPoStavkama[Proverite iznos],TroškoviPoStavkama[G/L kôd],RezimeMesečnihTroškova[[#This Row],[G/L kôd]],TroškoviPoStavkama[Datum fakture],\">=\"&H$3,TroškoviPoStavkama[Datum fakture],\"<=\"&H$4)+SUMIFS(Drugo[Proverite iznos],Drugo[G/L kôd],RezimeMesečnihTroškova[[#This Row],[G/L kôd]],Drugo[Pokrenut je zahtev za proveru datuma],\">=\"&DATEVALUE(\" 1 \"&RezimeMesečnihTroškova[[#Headers],[Maj]]&_GODINA),Drugo[Pokrenut je zahtev za proveru datuma],\"<=\"&H$4)","v":{"v":0,"d":"0.00 RSD"}},{"$f":"SUMIFS(TroškoviPoStavkama[Proverite iznos],TroškoviPoStavkama[G/L kôd],RezimeMesečnihTroškova[[#This Row],[G/L kôd]],TroškoviPoStavkama[Datum fakture],\">=\"&I$3,TroškoviPoStavkama[Datum fakture],\"<=\"&I$4)+SUMIFS(Drugo[Proverite iznos],Drugo[G/L kôd],RezimeMesečnihTroškova[[#This Row],[G/L kôd]],Drugo[Pokrenut je zahtev za proveru datuma],\">=\"&DATEVALUE(\" 1 \"&RezimeMesečnihTroškova[[#Headers],[Jun]]&_GODINA),Drugo[Pokrenut je zahtev za proveru datuma],\"<=\"&I$4)","v":{"v":0,"d":"0.00 RSD"}},{"$f":"SUMIFS(TroškoviPoStavkama[Proverite iznos],TroškoviPoStavkama[G/L kôd],RezimeMesečnihTroškova[[#This Row],[G/L kôd]],TroškoviPoStavkama[Datum fakture],\">=\"&J$3,TroškoviPoStavkama[Datum fakture],\"<=\"&J$4)+SUMIFS(Drugo[Proverite iznos],Drugo[G/L kôd],RezimeMesečnihTroškova[[#This Row],[G/L kôd]],Drugo[Pokrenut je zahtev za proveru datuma],\">=\"&DATEVALUE(\" 1 \"&RezimeMesečnihTroškova[[#Headers],[Jul]]&_GODINA),Drugo[Pokrenut je zahtev za proveru datuma],\"<=\"&J$4)","v":{"v":0,"d":"0.00 RSD"}},{"$f":"SUMIFS(TroškoviPoStavkama[Proverite iznos],TroškoviPoStavkama[G/L kôd],RezimeMesečnihTroškova[[#This Row],[G/L kôd]],TroškoviPoStavkama[Datum fakture],\">=\"&K$3,TroškoviPoStavkama[Datum fakture],\"<=\"&K$4)+SUMIFS(Drugo[Proverite iznos],Drugo[G/L kôd],RezimeMesečnihTroškova[[#This Row],[G/L kôd]],Drugo[Pokrenut je zahtev za proveru datuma],\">=\"&DATEVALUE(\" 1 \"&RezimeMesečnihTroškova[[#Headers],[Avgust]]&_GODINA),Drugo[Pokrenut je zahtev za proveru datuma],\"<=\"&K$4)","v":{"v":0,"d":"0.00 RSD"}},{"$f":"SUMIFS(TroškoviPoStavkama[Proverite iznos],TroškoviPoStavkama[G/L kôd],RezimeMesečnihTroškova[[#This Row],[G/L kôd]],TroškoviPoStavkama[Datum fakture],\">=\"&L$3,TroškoviPoStavkama[Datum fakture],\"<=\"&L$4)+SUMIFS(Drugo[Proverite iznos],Drugo[G/L kôd],RezimeMesečnihTroškova[[#This Row],[G/L kôd]],Drugo[Pokrenut je zahtev za proveru datuma],\">=\"&DATEVALUE(\" 1 \"&RezimeMesečnihTroškova[[#Headers],[Septembar]]&_GODINA),Drugo[Pokrenut je zahtev za proveru datuma],\"<=\"&L$4)","v":{"v":0,"d":"0.00 RSD"}},{"$f":"SUMIFS(TroškoviPoStavkama[Proverite iznos],TroškoviPoStavkama[G/L kôd],RezimeMesečnihTroškova[[#This Row],[G/L kôd]],TroškoviPoStavkama[Datum fakture],\">=\"&M$3,TroškoviPoStavkama[Datum fakture],\"<=\"&M$4)+SUMIFS(Drugo[Proverite iznos],Drugo[G/L kôd],RezimeMesečnihTroškova[[#This Row],[G/L kôd]],Drugo[Pokrenut je zahtev za proveru datuma],\">=\"&DATEVALUE(\" 1 \"&RezimeMesečnihTroškova[[#Headers],[Oktobar]]&_GODINA),Drugo[Pokrenut je zahtev za proveru datuma],\"<=\"&M$4)","v":{"v":0,"d":"0.00 RSD"}},{"$f":"SUMIFS(TroškoviPoStavkama[Proverite iznos],TroškoviPoStavkama[G/L kôd],RezimeMesečnihTroškova[[#This Row],[G/L kôd]],TroškoviPoStavkama[Datum fakture],\">=\"&N$3,TroškoviPoStavkama[Datum fakture],\"<=\"&N$4)+SUMIFS(Drugo[Proverite iznos],Drugo[G/L kôd],RezimeMesečnihTroškova[[#This Row],[G/L kôd]],Drugo[Pokrenut je zahtev za proveru datuma],\">=\"&DATEVALUE(\" 1 \"&RezimeMesečnihTroškova[[#Headers],[Novembar]]&_GODINA),Drugo[Pokrenut je zahtev za proveru datuma],\"<=\"&N$4)","v":{"v":0,"d":"0.00 RSD"}},{"$f":"SUMIFS(TroškoviPoStavkama[Proverite iznos],TroškoviPoStavkama[G/L kôd],RezimeMesečnihTroškova[[#This Row],[G/L kôd]],TroškoviPoStavkama[Datum fakture],\">=\"&O$3,TroškoviPoStavkama[Datum fakture],\"<=\"&O$4)+SUMIFS(Drugo[Proverite iznos],Drugo[G/L kôd],RezimeMesečnihTroškova[[#This Row],[G/L kôd]],Drugo[Pokrenut je zahtev za proveru datuma],\">=\"&DATEVALUE(\" 1 \"&RezimeMesečnihTroškova[[#Headers],[decembar]]&_GODINA),Drugo[Pokrenut je zahtev za proveru datuma],\"<=\"&O$4)","v":{"v":0,"d":"0.00 RSD"}},{"$f":"SUM(RezimeMesečnihTroškova[[#This Row],[januar]:[decembar]])","v":{"v":0,"d":"0.00 RSD"}}]
[null,4000,"Troškovi servera",{"$f":"SUMIFS(TroškoviPoStavkama[Proverite iznos],TroškoviPoStavkama[G/L kôd],RezimeMesečnihTroškova[[#This Row],[G/L kôd]],TroškoviPoStavkama[Datum fakture],\">=\"&D$3,TroškoviPoStavkama[Datum fakture],\"<=\"&D$4)+SUMIFS(Drugo[Proverite iznos],Drugo[G/L kôd],RezimeMesečnihTroškova[[#This Row],[G/L kôd]],Drugo[Pokrenut je zahtev za proveru datuma],\">=\"&DATEVALUE(\" 1 \"&RezimeMesečnihTroškova[[#Headers],[januar]]&_GODINA),Drugo[Pokrenut je zahtev za proveru datuma],\"<=\"&D$4)","v":{"v":0,"d":"0.00 RSD"}},{"$f":"SUMIFS(TroškoviPoStavkama[Proverite iznos],TroškoviPoStavkama[G/L kôd],RezimeMesečnihTroškova[[#This Row],[G/L kôd]],TroškoviPoStavkama[Datum fakture],\">=\"&E$3,TroškoviPoStavkama[Datum fakture],\"<=\"&E$4)+SUMIFS(Drugo[Proverite iznos],Drugo[G/L kôd],RezimeMesečnihTroškova[[#This Row],[G/L kôd]],Drugo[Pokrenut je zahtev za proveru datuma],\">=\"&DATEVALUE(\" 1 \"&RezimeMesečnihTroškova[[#Headers],[Februar]]&_GODINA),Drugo[Pokrenut je zahtev za proveru datuma],\"<=\"&E$4)","v":{"v":0,"d":"0.00 RSD"}},{"$f":"SUMIFS(TroškoviPoStavkama[Proverite iznos],TroškoviPoStavkama[G/L kôd],RezimeMesečnihTroškova[[#This Row],[G/L kôd]],TroškoviPoStavkama[Datum fakture],\">=\"&F$3,TroškoviPoStavkama[Datum fakture],\"<=\"&F$4)+SUMIFS(Drugo[Proverite iznos],Drugo[G/L kôd],RezimeMesečnihTroškova[[#This Row],[G/L kôd]],Drugo[Pokrenut je zahtev za proveru datuma],\">=\"&DATEVALUE(\" 1 \"&RezimeMesečnihTroškova[[#Headers],[Mart]]&_GODINA),Drugo[Pokrenut je zahtev za proveru datuma],\"<=\"&F$4)","v":{"v":0,"d":"0.00 RSD"}},{"$f":"SUMIFS(TroškoviPoStavkama[Proverite iznos],TroškoviPoStavkama[G/L kôd],RezimeMesečnihTroškova[[#This Row],[G/L kôd]],TroškoviPoStavkama[Datum fakture],\">=\"&G$3,TroškoviPoStavkama[Datum fakture],\"<=\"&G$4)+SUMIFS(Drugo[Proverite iznos],Drugo[G/L kôd],RezimeMesečnihTroškova[[#This Row],[G/L kôd]],Drugo[Pokrenut je zahtev za proveru datuma],\">=\"&DATEVALUE(\" 1 \"&RezimeMesečnihTroškova[[#Headers],[April]]&_GODINA),Drugo[Pokrenut je zahtev za proveru datuma],\"<=\"&G$4)","v":{"v":0,"d":"0.00 RSD"}},{"$f":"SUMIFS(TroškoviPoStavkama[Proverite iznos],TroškoviPoStavkama[G/L kôd],RezimeMesečnihTroškova[[#This Row],[G/L kôd]],TroškoviPoStavkama[Datum fakture],\">=\"&H$3,TroškoviPoStavkama[Datum fakture],\"<=\"&H$4)+SUMIFS(Drugo[Proverite iznos],Drugo[G/L kôd],RezimeMesečnihTroškova[[#This Row],[G/L kôd]],Drugo[Pokrenut je zahtev za proveru datuma],\">=\"&DATEVALUE(\" 1 \"&RezimeMesečnihTroškova[[#Headers],[Maj]]&_GODINA),Drugo[Pokrenut je zahtev za proveru datuma],\"<=\"&H$4)","v":{"v":0,"d":"0.00 RSD"}},{"$f":"SUMIFS(TroškoviPoStavkama[Proverite iznos],TroškoviPoStavkama[G/L kôd],RezimeMesečnihTroškova[[#This Row],[G/L kôd]],TroškoviPoStavkama[Datum fakture],\">=\"&I$3,TroškoviPoStavkama[Datum fakture],\"<=\"&I$4)+SUMIFS(Drugo[Proverite iznos],Drugo[G/L kôd],RezimeMesečnihTroškova[[#This Row],[G/L kôd]],Drugo[Pokrenut je zahtev za proveru datuma],\">=\"&DATEVALUE(\" 1 \"&RezimeMesečnihTroškova[[#Headers],[Jun]]&_GODINA),Drugo[Pokrenut je zahtev za proveru datuma],\"<=\"&I$4)","v":{"v":0,"d":"0.00 RSD"}},{"$f":"SUMIFS(TroškoviPoStavkama[Proverite iznos],TroškoviPoStavkama[G/L kôd],RezimeMesečnihTroškova[[#This Row],[G/L kôd]],TroškoviPoStavkama[Datum fakture],\">=\"&J$3,TroškoviPoStavkama[Datum fakture],\"<=\"&J$4)+SUMIFS(Drugo[Proverite iznos],Drugo[G/L kôd],RezimeMesečnihTroškova[[#This Row],[G/L kôd]],Drugo[Pokrenut je zahtev za proveru datuma],\">=\"&DATEVALUE(\" 1 \"&RezimeMesečnihTroškova[[#Headers],[Jul]]&_GODINA),Drugo[Pokrenut je zahtev za proveru datuma],\"<=\"&J$4)","v":{"v":0,"d":"0.00 RSD"}},{"$f":"SUMIFS(TroškoviPoStavkama[Proverite iznos],TroškoviPoStavkama[G/L kôd],RezimeMesečnihTroškova[[#This Row],[G/L kôd]],TroškoviPoStavkama[Datum fakture],\">=\"&K$3,TroškoviPoStavkama[Datum fakture],\"<=\"&K$4)+SUMIFS(Drugo[Proverite iznos],Drugo[G/L kôd],RezimeMesečnihTroškova[[#This Row],[G/L kôd]],Drugo[Pokrenut je zahtev za proveru datuma],\">=\"&DATEVALUE(\" 1 \"&RezimeMesečnihTroškova[[#Headers],[Avgust]]&_GODINA),Drugo[Pokrenut je zahtev za proveru datuma],\"<=\"&K$4)","v":{"v":0,"d":"0.00 RSD"}},{"$f":"SUMIFS(TroškoviPoStavkama[Proverite iznos],TroškoviPoStavkama[G/L kôd],RezimeMesečnihTroškova[[#This Row],[G/L kôd]],TroškoviPoStavkama[Datum fakture],\">=\"&L$3,TroškoviPoStavkama[Datum fakture],\"<=\"&L$4)+SUMIFS(Drugo[Proverite iznos],Drugo[G/L kôd],RezimeMesečnihTroškova[[#This Row],[G/L kôd]],Drugo[Pokrenut je zahtev za proveru datuma],\">=\"&DATEVALUE(\" 1 \"&RezimeMesečnihTroškova[[#Headers],[Septembar]]&_GODINA),Drugo[Pokrenut je zahtev za proveru datuma],\"<=\"&L$4)","v":{"v":0,"d":"0.00 RSD"}},{"$f":"SUMIFS(TroškoviPoStavkama[Proverite iznos],TroškoviPoStavkama[G/L kôd],RezimeMesečnihTroškova[[#This Row],[G/L kôd]],TroškoviPoStavkama[Datum fakture],\">=\"&M$3,TroškoviPoStavkama[Datum fakture],\"<=\"&M$4)+SUMIFS(Drugo[Proverite iznos],Drugo[G/L kôd],RezimeMesečnihTroškova[[#This Row],[G/L kôd]],Drugo[Pokrenut je zahtev za proveru datuma],\">=\"&DATEVALUE(\" 1 \"&RezimeMesečnihTroškova[[#Headers],[Oktobar]]&_GODINA),Drugo[Pokrenut je zahtev za proveru datuma],\"<=\"&M$4)","v":{"v":0,"d":"0.00 RSD"}},{"$f":"SUMIFS(TroškoviPoStavkama[Proverite iznos],TroškoviPoStavkama[G/L kôd],RezimeMesečnihTroškova[[#This Row],[G/L kôd]],TroškoviPoStavkama[Datum fakture],\">=\"&N$3,TroškoviPoStavkama[Datum fakture],\"<=\"&N$4)+SUMIFS(Drugo[Proverite iznos],Drugo[G/L kôd],RezimeMesečnihTroškova[[#This Row],[G/L kôd]],Drugo[Pokrenut je zahtev za proveru datuma],\">=\"&DATEVALUE(\" 1 \"&RezimeMesečnihTroškova[[#Headers],[Novembar]]&_GODINA),Drugo[Pokrenut je zahtev za proveru datuma],\"<=\"&N$4)","v":{"v":0,"d":"0.00 RSD"}},{"$f":"SUMIFS(TroškoviPoStavkama[Proverite iznos],TroškoviPoStavkama[G/L kôd],RezimeMesečnihTroškova[[#This Row],[G/L kôd]],TroškoviPoStavkama[Datum fakture],\">=\"&O$3,TroškoviPoStavkama[Datum fakture],\"<=\"&O$4)+SUMIFS(Drugo[Proverite iznos],Drugo[G/L kôd],RezimeMesečnihTroškova[[#This Row],[G/L kôd]],Drugo[Pokrenut je zahtev za proveru datuma],\">=\"&DATEVALUE(\" 1 \"&RezimeMesečnihTroškova[[#Headers],[decembar]]&_GODINA),Drugo[Pokrenut je zahtev za proveru datuma],\"<=\"&O$4)","v":{"v":0,"d":"0.00 RSD"}},{"$f":"SUM(RezimeMesečnihTroškova[[#This Row],[januar]:[decembar]])","v":{"v":0,"d":"0.00 RSD"}}]
[null,5000,"Pribor",{"$f":"SUMIFS(TroškoviPoStavkama[Proverite iznos],TroškoviPoStavkama[G/L kôd],RezimeMesečnihTroškova[[#This Row],[G/L kôd]],TroškoviPoStavkama[Datum fakture],\">=\"&D$3,TroškoviPoStavkama[Datum fakture],\"<=\"&D$4)+SUMIFS(Drugo[Proverite iznos],Drugo[G/L kôd],RezimeMesečnihTroškova[[#This Row],[G/L kôd]],Drugo[Pokrenut je zahtev za proveru datuma],\">=\"&DATEVALUE(\" 1 \"&RezimeMesečnihTroškova[[#Headers],[januar]]&_GODINA),Drugo[Pokrenut je zahtev za proveru datuma],\"<=\"&D$4)","v":{"v":0,"d":"0.00 RSD"}},{"$f":"SUMIFS(TroškoviPoStavkama[Proverite iznos],TroškoviPoStavkama[G/L kôd],RezimeMesečnihTroškova[[#This Row],[G/L kôd]],TroškoviPoStavkama[Datum fakture],\">=\"&E$3,TroškoviPoStavkama[Datum fakture],\"<=\"&E$4)+SUMIFS(Drugo[Proverite iznos],Drugo[G/L kôd],RezimeMesečnihTroškova[[#This Row],[G/L kôd]],Drugo[Pokrenut je zahtev za proveru datuma],\">=\"&DATEVALUE(\" 1 \"&RezimeMesečnihTroškova[[#Headers],[Februar]]&_GODINA),Drugo[Pokrenut je zahtev za proveru datuma],\"<=\"&E$4)","v":{"v":0,"d":"0.00 RSD"}},{"$f":"SUMIFS(TroškoviPoStavkama[Proverite iznos],TroškoviPoStavkama[G/L kôd],RezimeMesečnihTroškova[[#This Row],[G/L kôd]],TroškoviPoStavkama[Datum fakture],\">=\"&F$3,TroškoviPoStavkama[Datum fakture],\"<=\"&F$4)+SUMIFS(Drugo[Proverite iznos],Drugo[G/L kôd],RezimeMesečnihTroškova[[#This Row],[G/L kôd]],Drugo[Pokrenut je zahtev za proveru datuma],\">=\"&DATEVALUE(\" 1 \"&RezimeMesečnihTroškova[[#Headers],[Mart]]&_GODINA),Drugo[Pokrenut je zahtev za proveru datuma],\"<=\"&F$4)","v":{"v":0,"d":"0.00 RSD"}},{"$f":"SUMIFS(TroškoviPoStavkama[Proverite iznos],TroškoviPoStavkama[G/L kôd],RezimeMesečnihTroškova[[#This Row],[G/L kôd]],TroškoviPoStavkama[Datum fakture],\">=\"&G$3,TroškoviPoStavkama[Datum fakture],\"<=\"&G$4)+SUMIFS(Drugo[Proverite iznos],Drugo[G/L kôd],RezimeMesečnihTroškova[[#This Row],[G/L kôd]],Drugo[Pokrenut je zahtev za proveru datuma],\">=\"&DATEVALUE(\" 1 \"&RezimeMesečnihTroškova[[#Headers],[April]]&_GODINA),Drugo[Pokrenut je zahtev za proveru datuma],\"<=\"&G$4)","v":{"v":0,"d":"0.00 RSD"}},{"$f":"SUMIFS(TroškoviPoStavkama[Proverite iznos],TroškoviPoStavkama[G/L kôd],RezimeMesečnihTroškova[[#This Row],[G/L kôd]],TroškoviPoStavkama[Datum fakture],\">=\"&H$3,TroškoviPoStavkama[Datum fakture],\"<=\"&H$4)+SUMIFS(Drugo[Proverite iznos],Drugo[G/L kôd],RezimeMesečnihTroškova[[#This Row],[G/L kôd]],Drugo[Pokrenut je zahtev za proveru datuma],\">=\"&DATEVALUE(\" 1 \"&RezimeMesečnihTroškova[[#Headers],[Maj]]&_GODINA),Drugo[Pokrenut je zahtev za proveru datuma],\"<=\"&H$4)","v":{"v":0,"d":"0.00 RSD"}},{"$f":"SUMIFS(TroškoviPoStavkama[Proverite iznos],TroškoviPoStavkama[G/L kôd],RezimeMesečnihTroškova[[#This Row],[G/L kôd]],TroškoviPoStavkama[Datum fakture],\">=\"&I$3,TroškoviPoStavkama[Datum fakture],\"<=\"&I$4)+SUMIFS(Drugo[Proverite iznos],Drugo[G/L kôd],RezimeMesečnihTroškova[[#This Row],[G/L kôd]],Drugo[Pokrenut je zahtev za proveru datuma],\">=\"&DATEVALUE(\" 1 \"&RezimeMesečnihTroškova[[#Headers],[Jun]]&_GODINA),Drugo[Pokrenut je zahtev za proveru datuma],\"<=\"&I$4)","v":{"v":0,"d":"0.00 RSD"}},{"$f":"SUMIFS(TroškoviPoStavkama[Proverite iznos],TroškoviPoStavkama[G/L kôd],RezimeMesečnihTroškova[[#This Row],[G/L kôd]],TroškoviPoStavkama[Datum fakture],\">=\"&J$3,TroškoviPoStavkama[Datum fakture],\"<=\"&J$4)+SUMIFS(Drugo[Proverite iznos],Drugo[G/L kôd],RezimeMesečnihTroškova[[#This Row],[G/L kôd]],Drugo[Pokrenut je zahtev za proveru datuma],\">=\"&DATEVALUE(\" 1 \"&RezimeMesečnihTroškova[[#Headers],[Jul]]&_GODINA),Drugo[Pokrenut je zahtev za proveru datuma],\"<=\"&J$4)","v":{"v":0,"d":"0.00 RSD"}},{"$f":"SUMIFS(TroškoviPoStavkama[Proverite iznos],TroškoviPoStavkama[G/L kôd],RezimeMesečnihTroškova[[#This Row],[G/L kôd]],TroškoviPoStavkama[Datum fakture],\">=\"&K$3,TroškoviPoStavkama[Datum fakture],\"<=\"&K$4)+SUMIFS(Drugo[Proverite iznos],Drugo[G/L kôd],RezimeMesečnihTroškova[[#This Row],[G/L kôd]],Drugo[Pokrenut je zahtev za proveru datuma],\">=\"&DATEVALUE(\" 1 \"&RezimeMesečnihTroškova[[#Headers],[Avgust]]&_GODINA),Drugo[Pokrenut je zahtev za proveru datuma],\"<=\"&K$4)","v":{"v":0,"d":"0.00 RSD"}},{"$f":"SUMIFS(TroškoviPoStavkama[Proverite iznos],TroškoviPoStavkama[G/L kôd],RezimeMesečnihTroškova[[#This Row],[G/L kôd]],TroškoviPoStavkama[Datum fakture],\">=\"&L$3,TroškoviPoStavkama[Datum fakture],\"<=\"&L$4)+SUMIFS(Drugo[Proverite iznos],Drugo[G/L kôd],RezimeMesečnihTroškova[[#This Row],[G/L kôd]],Drugo[Pokrenut je zahtev za proveru datuma],\">=\"&DATEVALUE(\" 1 \"&RezimeMesečnihTroškova[[#Headers],[Septembar]]&_GODINA),Drugo[Pokrenut je zahtev za proveru datuma],\"<=\"&L$4)","v":{"v":0,"d":"0.00 RSD"}},{"$f":"SUMIFS(TroškoviPoStavkama[Proverite iznos],TroškoviPoStavkama[G/L kôd],RezimeMesečnihTroškova[[#This Row],[G/L kôd]],TroškoviPoStavkama[Datum fakture],\">=\"&M$3,TroškoviPoStavkama[Datum fakture],\"<=\"&M$4)+SUMIFS(Drugo[Proverite iznos],Drugo[G/L kôd],RezimeMesečnihTroškova[[#This Row],[G/L kôd]],Drugo[Pokrenut je zahtev za proveru datuma],\">=\"&DATEVALUE(\" 1 \"&RezimeMesečnihTroškova[[#Headers],[Oktobar]]&_GODINA),Drugo[Pokrenut je zahtev za proveru datuma],\"<=\"&M$4)","v":{"v":0,"d":"0.00 RSD"}},{"$f":"SUMIFS(TroškoviPoStavkama[Proverite iznos],TroškoviPoStavkama[G/L kôd],RezimeMesečnihTroškova[[#This Row],[G/L kôd]],TroškoviPoStavkama[Datum fakture],\">=\"&N$3,TroškoviPoStavkama[Datum fakture],\"<=\"&N$4)+SUMIFS(Drugo[Proverite iznos],Drugo[G/L kôd],RezimeMesečnihTroškova[[#This Row],[G/L kôd]],Drugo[Pokrenut je zahtev za proveru datuma],\">=\"&DATEVALUE(\" 1 \"&RezimeMesečnihTroškova[[#Headers],[Novembar]]&_GODINA),Drugo[Pokrenut je zahtev za proveru datuma],\"<=\"&N$4)","v":{"v":0,"d":"0.00 RSD"}},{"$f":"SUMIFS(TroškoviPoStavkama[Proverite iznos],TroškoviPoStavkama[G/L kôd],RezimeMesečnihTroškova[[#This Row],[G/L kôd]],TroškoviPoStavkama[Datum fakture],\">=\"&O$3,TroškoviPoStavkama[Datum fakture],\"<=\"&O$4)+SUMIFS(Drugo[Proverite iznos],Drugo[G/L kôd],RezimeMesečnihTroškova[[#This Row],[G/L kôd]],Drugo[Pokrenut je zahtev za proveru datuma],\">=\"&DATEVALUE(\" 1 \"&RezimeMesečnihTroškova[[#Headers],[decembar]]&_GODINA),Drugo[Pokrenut je zahtev za proveru datuma],\"<=\"&O$4)","v":{"v":0,"d":"0.00 RSD"}},{"$f":"SUM(RezimeMesečnihTroškova[[#This Row],[januar]:[decembar]])","v":{"v":0,"d":"0.00 RSD"}}]
[null,6000,"Troškovi klijenata",{"$f":"SUMIFS(TroškoviPoStavkama[Proverite iznos],TroškoviPoStavkama[G/L kôd],RezimeMesečnihTroškova[[#This Row],[G/L kôd]],TroškoviPoStavkama[Datum fakture],\">=\"&D$3,TroškoviPoStavkama[Datum fakture],\"<=\"&D$4)+SUMIFS(Drugo[Proverite iznos],Drugo[G/L kôd],RezimeMesečnihTroškova[[#This Row],[G/L kôd]],Drugo[Pokrenut je zahtev za proveru datuma],\">=\"&DATEVALUE(\" 1 \"&RezimeMesečnihTroškova[[#Headers],[januar]]&_GODINA),Drugo[Pokrenut je zahtev za proveru datuma],\"<=\"&D$4)","v":{"v":0,"d":"0.00 RSD"}},{"$f":"SUMIFS(TroškoviPoStavkama[Proverite iznos],TroškoviPoStavkama[G/L kôd],RezimeMesečnihTroškova[[#This Row],[G/L kôd]],TroškoviPoStavkama[Datum fakture],\">=\"&E$3,TroškoviPoStavkama[Datum fakture],\"<=\"&E$4)+SUMIFS(Drugo[Proverite iznos],Drugo[G/L kôd],RezimeMesečnihTroškova[[#This Row],[G/L kôd]],Drugo[Pokrenut je zahtev za proveru datuma],\">=\"&DATEVALUE(\" 1 \"&RezimeMesečnihTroškova[[#Headers],[Februar]]&_GODINA),Drugo[Pokrenut je zahtev za proveru datuma],\"<=\"&E$4)","v":{"v":0,"d":"0.00 RSD"}},{"$f":"SUMIFS(TroškoviPoStavkama[Proverite iznos],TroškoviPoStavkama[G/L kôd],RezimeMesečnihTroškova[[#This Row],[G/L kôd]],TroškoviPoStavkama[Datum fakture],\">=\"&F$3,TroškoviPoStavkama[Datum fakture],\"<=\"&F$4)+SUMIFS(Drugo[Proverite iznos],Drugo[G/L kôd],RezimeMesečnihTroškova[[#This Row],[G/L kôd]],Drugo[Pokrenut je zahtev za proveru datuma],\">=\"&DATEVALUE(\" 1 \"&RezimeMesečnihTroškova[[#Headers],[Mart]]&_GODINA),Drugo[Pokrenut je zahtev za proveru datuma],\"<=\"&F$4)","v":{"v":0,"d":"0.00 RSD"}},{"$f":"SUMIFS(TroškoviPoStavkama[Proverite iznos],TroškoviPoStavkama[G/L kôd],RezimeMesečnihTroškova[[#This Row],[G/L kôd]],TroškoviPoStavkama[Datum fakture],\">=\"&G$3,TroškoviPoStavkama[Datum fakture],\"<=\"&G$4)+SUMIFS(Drugo[Proverite iznos],Drugo[G/L kôd],RezimeMesečnihTroškova[[#This Row],[G/L kôd]],Drugo[Pokrenut je zahtev za proveru datuma],\">=\"&DATEVALUE(\" 1 \"&RezimeMesečnihTroškova[[#Headers],[April]]&_GODINA),Drugo[Pokrenut je zahtev za proveru datuma],\"<=\"&G$4)","v":{"v":0,"d":"0.00 RSD"}},{"$f":"SUMIFS(TroškoviPoStavkama[Proverite iznos],TroškoviPoStavkama[G/L kôd],RezimeMesečnihTroškova[[#This Row],[G/L kôd]],TroškoviPoStavkama[Datum fakture],\">=\"&H$3,TroškoviPoStavkama[Datum fakture],\"<=\"&H$4)+SUMIFS(Drugo[Proverite iznos],Drugo[G/L kôd],RezimeMesečnihTroškova[[#This Row],[G/L kôd]],Drugo[Pokrenut je zahtev za proveru datuma],\">=\"&DATEVALUE(\" 1 \"&RezimeMesečnihTroškova[[#Headers],[Maj]]&_GODINA),Drugo[Pokrenut je zahtev za proveru datuma],\"<=\"&H$4)","v":{"v":0,"d":"0.00 RSD"}},{"$f":"SUMIFS(TroškoviPoStavkama[Proverite iznos],TroškoviPoStavkama[G/L kôd],RezimeMesečnihTroškova[[#This Row],[G/L kôd]],TroškoviPoStavkama[Datum fakture],\">=\"&I$3,TroškoviPoStavkama[Datum fakture],\"<=\"&I$4)+SUMIFS(Drugo[Proverite iznos],Drugo[G/L kôd],RezimeMesečnihTroškova[[#This Row],[G/L kôd]],Drugo[Pokrenut je zahtev za proveru datuma],\">=\"&DATEVALUE(\" 1 \"&RezimeMesečnihTroškova[[#Headers],[Jun]]&_GODINA),Drugo[Pokrenut je zahtev za proveru datuma],\"<=\"&I$4)","v":{"v":0,"d":"0.00 RSD"}},{"$f":"SUMIFS(TroškoviPoStavkama[Proverite iznos],TroškoviPoStavkama[G/L kôd],RezimeMesečnihTroškova[[#This Row],[G/L kôd]],TroškoviPoStavkama[Datum fakture],\">=\"&J$3,TroškoviPoStavkama[Datum fakture],\"<=\"&J$4)+SUMIFS(Drugo[Proverite iznos],Drugo[G/L kôd],RezimeMesečnihTroškova[[#This Row],[G/L kôd]],Drugo[Pokrenut je zahtev za proveru datuma],\">=\"&DATEVALUE(\" 1 \"&RezimeMesečnihTroškova[[#Headers],[Jul]]&_GODINA),Drugo[Pokrenut je zahtev za proveru datuma],\"<=\"&J$4)","v":{"v":0,"d":"0.00 RSD"}},{"$f":"SUMIFS(TroškoviPoStavkama[Proverite iznos],TroškoviPoStavkama[G/L kôd],RezimeMesečnihTroškova[[#This Row],[G/L kôd]],TroškoviPoStavkama[Datum fakture],\">=\"&K$3,TroškoviPoStavkama[Datum fakture],\"<=\"&K$4)+SUMIFS(Drugo[Proverite iznos],Drugo[G/L kôd],RezimeMesečnihTroškova[[#This Row],[G/L kôd]],Drugo[Pokrenut je zahtev za proveru datuma],\">=\"&DATEVALUE(\" 1 \"&RezimeMesečnihTroškova[[#Headers],[Avgust]]&_GODINA),Drugo[Pokrenut je zahtev za proveru datuma],\"<=\"&K$4)","v":{"v":0,"d":"0.00 RSD"}},{"$f":"SUMIFS(TroškoviPoStavkama[Proverite iznos],TroškoviPoStavkama[G/L kôd],RezimeMesečnihTroškova[[#This Row],[G/L kôd]],TroškoviPoStavkama[Datum fakture],\">=\"&L$3,TroškoviPoStavkama[Datum fakture],\"<=\"&L$4)+SUMIFS(Drugo[Proverite iznos],Drugo[G/L kôd],RezimeMesečnihTroškova[[#This Row],[G/L kôd]],Drugo[Pokrenut je zahtev za proveru datuma],\">=\"&DATEVALUE(\" 1 \"&RezimeMesečnihTroškova[[#Headers],[Septembar]]&_GODINA),Drugo[Pokrenut je zahtev za proveru datuma],\"<=\"&L$4)","v":{"v":0,"d":"0.00 RSD"}},{"$f":"SUMIFS(TroškoviPoStavkama[Proverite iznos],TroškoviPoStavkama[G/L kôd],RezimeMesečnihTroškova[[#This Row],[G/L kôd]],TroškoviPoStavkama[Datum fakture],\">=\"&M$3,TroškoviPoStavkama[Datum fakture],\"<=\"&M$4)+SUMIFS(Drugo[Proverite iznos],Drugo[G/L kôd],RezimeMesečnihTroškova[[#This Row],[G/L kôd]],Drugo[Pokrenut je zahtev za proveru datuma],\">=\"&DATEVALUE(\" 1 \"&RezimeMesečnihTroškova[[#Headers],[Oktobar]]&_GODINA),Drugo[Pokrenut je zahtev za proveru datuma],\"<=\"&M$4)","v":{"v":0,"d":"0.00 RSD"}},{"$f":"SUMIFS(TroškoviPoStavkama[Proverite iznos],TroškoviPoStavkama[G/L kôd],RezimeMesečnihTroškova[[#This Row],[G/L kôd]],TroškoviPoStavkama[Datum fakture],\">=\"&N$3,TroškoviPoStavkama[Datum fakture],\"<=\"&N$4)+SUMIFS(Drugo[Proverite iznos],Drugo[G/L kôd],RezimeMesečnihTroškova[[#This Row],[G/L kôd]],Drugo[Pokrenut je zahtev za proveru datuma],\">=\"&DATEVALUE(\" 1 \"&RezimeMesečnihTroškova[[#Headers],[Novembar]]&_GODINA),Drugo[Pokrenut je zahtev za proveru datuma],\"<=\"&N$4)","v":{"v":0,"d":"0.00 RSD"}},{"$f":"SUMIFS(TroškoviPoStavkama[Proverite iznos],TroškoviPoStavkama[G/L kôd],RezimeMesečnihTroškova[[#This Row],[G/L kôd]],TroškoviPoStavkama[Datum fakture],\">=\"&O$3,TroškoviPoStavkama[Datum fakture],\"<=\"&O$4)+SUMIFS(Drugo[Proverite iznos],Drugo[G/L kôd],RezimeMesečnihTroškova[[#This Row],[G/L kôd]],Drugo[Pokrenut je zahtev za proveru datuma],\">=\"&DATEVALUE(\" 1 \"&RezimeMesečnihTroškova[[#Headers],[decembar]]&_GODINA),Drugo[Pokrenut je zahtev za proveru datuma],\"<=\"&O$4)","v":{"v":0,"d":"0.00 RSD"}},{"$f":"SUM(RezimeMesečnihTroškova[[#This Row],[januar]:[decembar]])","v":{"v":0,"d":"0.00 RSD"}}]
[null,7000,"Računari",{"$f":"SUMIFS(TroškoviPoStavkama[Proverite iznos],TroškoviPoStavkama[G/L kôd],RezimeMesečnihTroškova[[#This Row],[G/L kôd]],TroškoviPoStavkama[Datum fakture],\">=\"&D$3,TroškoviPoStavkama[Datum fakture],\"<=\"&D$4)+SUMIFS(Drugo[Proverite iznos],Drugo[G/L kôd],RezimeMesečnihTroškova[[#This Row],[G/L kôd]],Drugo[Pokrenut je zahtev za proveru datuma],\">=\"&DATEVALUE(\" 1 \"&RezimeMesečnihTroškova[[#Headers],[januar]]&_GODINA),Drugo[Pokrenut je zahtev za proveru datuma],\"<=\"&D$4)","v":{"v":0,"d":"0.00 RSD"}},{"$f":"SUMIFS(TroškoviPoStavkama[Proverite iznos],TroškoviPoStavkama[G/L kôd],RezimeMesečnihTroškova[[#This Row],[G/L kôd]],TroškoviPoStavkama[Datum fakture],\">=\"&E$3,TroškoviPoStavkama[Datum fakture],\"<=\"&E$4)+SUMIFS(Drugo[Proverite iznos],Drugo[G/L kôd],RezimeMesečnihTroškova[[#This Row],[G/L kôd]],Drugo[Pokrenut je zahtev za proveru datuma],\">=\"&DATEVALUE(\" 1 \"&RezimeMesečnihTroškova[[#Headers],[Februar]]&_GODINA),Drugo[Pokrenut je zahtev za proveru datuma],\"<=\"&E$4)","v":{"v":0,"d":"0.00 RSD"}},{"$f":"SUMIFS(TroškoviPoStavkama[Proverite iznos],TroškoviPoStavkama[G/L kôd],RezimeMesečnihTroškova[[#This Row],[G/L kôd]],TroškoviPoStavkama[Datum fakture],\">=\"&F$3,TroškoviPoStavkama[Datum fakture],\"<=\"&F$4)+SUMIFS(Drugo[Proverite iznos],Drugo[G/L kôd],RezimeMesečnihTroškova[[#This Row],[G/L kôd]],Drugo[Pokrenut je zahtev za proveru datuma],\">=\"&DATEVALUE(\" 1 \"&RezimeMesečnihTroškova[[#Headers],[Mart]]&_GODINA),Drugo[Pokrenut je zahtev za proveru datuma],\"<=\"&F$4)","v":{"v":0,"d":"0.00 RSD"}},{"$f":"SUMIFS(TroškoviPoStavkama[Proverite iznos],TroškoviPoStavkama[G/L kôd],RezimeMesečnihTroškova[[#This Row],[G/L kôd]],TroškoviPoStavkama[Datum fakture],\">=\"&G$3,TroškoviPoStavkama[Datum fakture],\"<=\"&G$4)+SUMIFS(Drugo[Proverite iznos],Drugo[G/L kôd],RezimeMesečnihTroškova[[#This Row],[G/L kôd]],Drugo[Pokrenut je zahtev za proveru datuma],\">=\"&DATEVALUE(\" 1 \"&RezimeMesečnihTroškova[[#Headers],[April]]&_GODINA),Drugo[Pokrenut je zahtev za proveru datuma],\"<=\"&G$4)","v":{"v":0,"d":"0.00 RSD"}},{"$f":"SUMIFS(TroškoviPoStavkama[Proverite iznos],TroškoviPoStavkama[G/L kôd],RezimeMesečnihTroškova[[#This Row],[G/L kôd]],TroškoviPoStavkama[Datum fakture],\">=\"&H$3,TroškoviPoStavkama[Datum fakture],\"<=\"&H$4)+SUMIFS(Drugo[Proverite iznos],Drugo[G/L kôd],RezimeMesečnihTroškova[[#This Row],[G/L kôd]],Drugo[Pokrenut je zahtev za proveru datuma],\">=\"&DATEVALUE(\" 1 \"&RezimeMesečnihTroškova[[#Headers],[Maj]]&_GODINA),Drugo[Pokrenut je zahtev za proveru datuma],\"<=\"&H$4)","v":{"v":0,"d":"0.00 RSD"}},{"$f":"SUMIFS(TroškoviPoStavkama[Proverite iznos],TroškoviPoStavkama[G/L kôd],RezimeMesečnihTroškova[[#This Row],[G/L kôd]],TroškoviPoStavkama[Datum fakture],\">=\"&I$3,TroškoviPoStavkama[Datum fakture],\"<=\"&I$4)+SUMIFS(Drugo[Proverite iznos],Drugo[G/L kôd],RezimeMesečnihTroškova[[#This Row],[G/L kôd]],Drugo[Pokrenut je zahtev za proveru datuma],\">=\"&DATEVALUE(\" 1 \"&RezimeMesečnihTroškova[[#Headers],[Jun]]&_GODINA),Drugo[Pokrenut je zahtev za proveru datuma],\"<=\"&I$4)","v":{"v":0,"d":"0.00 RSD"}},{"$f":"SUMIFS(TroškoviPoStavkama[Proverite iznos],TroškoviPoStavkama[G/L kôd],RezimeMesečnihTroškova[[#This Row],[G/L kôd]],TroškoviPoStavkama[Datum fakture],\">=\"&J$3,TroškoviPoStavkama[Datum fakture],\"<=\"&J$4)+SUMIFS(Drugo[Proverite iznos],Drugo[G/L kôd],RezimeMesečnihTroškova[[#This Row],[G/L kôd]],Drugo[Pokrenut je zahtev za proveru datuma],\">=\"&DATEVALUE(\" 1 \"&RezimeMesečnihTroškova[[#Headers],[Jul]]&_GODINA),Drugo[Pokrenut je zahtev za proveru datuma],\"<=\"&J$4)","v":{"v":0,"d":"0.00 RSD"}},{"$f":"SUMIFS(TroškoviPoStavkama[Proverite iznos],TroškoviPoStavkama[G/L kôd],RezimeMesečnihTroškova[[#This Row],[G/L kôd]],TroškoviPoStavkama[Datum fakture],\">=\"&K$3,TroškoviPoStavkama[Datum fakture],\"<=\"&K$4)+SUMIFS(Drugo[Proverite iznos],Drugo[G/L kôd],RezimeMesečnihTroškova[[#This Row],[G/L kôd]],Drugo[Pokrenut je zahtev za proveru datuma],\">=\"&DATEVALUE(\" 1 \"&RezimeMesečnihTroškova[[#Headers],[Avgust]]&_GODINA),Drugo[Pokrenut je zahtev za proveru datuma],\"<=\"&K$4)","v":{"v":0,"d":"0.00 RSD"}},{"$f":"SUMIFS(TroškoviPoStavkama[Proverite iznos],TroškoviPoStavkama[G/L kôd],RezimeMesečnihTroškova[[#This Row],[G/L kôd]],TroškoviPoStavkama[Datum fakture],\">=\"&L$3,TroškoviPoStavkama[Datum fakture],\"<=\"&L$4)+SUMIFS(Drugo[Proverite iznos],Drugo[G/L kôd],RezimeMesečnihTroškova[[#This Row],[G/L kôd]],Drugo[Pokrenut je zahtev za proveru datuma],\">=\"&DATEVALUE(\" 1 \"&RezimeMesečnihTroškova[[#Headers],[Septembar]]&_GODINA),Drugo[Pokrenut je zahtev za proveru datuma],\"<=\"&L$4)","v":{"v":0,"d":"0.00 RSD"}},{"$f":"SUMIFS(TroškoviPoStavkama[Proverite iznos],TroškoviPoStavkama[G/L kôd],RezimeMesečnihTroškova[[#This Row],[G/L kôd]],TroškoviPoStavkama[Datum fakture],\">=\"&M$3,TroškoviPoStavkama[Datum fakture],\"<=\"&M$4)+SUMIFS(Drugo[Proverite iznos],Drugo[G/L kôd],RezimeMesečnihTroškova[[#This Row],[G/L kôd]],Drugo[Pokrenut je zahtev za proveru datuma],\">=\"&DATEVALUE(\" 1 \"&RezimeMesečnihTroškova[[#Headers],[Oktobar]]&_GODINA),Drugo[Pokrenut je zahtev za proveru datuma],\"<=\"&M$4)","v":{"v":0,"d":"0.00 RSD"}},{"$f":"SUMIFS(TroškoviPoStavkama[Proverite iznos],TroškoviPoStavkama[G/L kôd],RezimeMesečnihTroškova[[#This Row],[G/L kôd]],TroškoviPoStavkama[Datum fakture],\">=\"&N$3,TroškoviPoStavkama[Datum fakture],\"<=\"&N$4)+SUMIFS(Drugo[Proverite iznos],Drugo[G/L kôd],RezimeMesečnihTroškova[[#This Row],[G/L kôd]],Drugo[Pokrenut je zahtev za proveru datuma],\">=\"&DATEVALUE(\" 1 \"&RezimeMesečnihTroškova[[#Headers],[Novembar]]&_GODINA),Drugo[Pokrenut je zahtev za proveru datuma],\"<=\"&N$4)","v":{"v":0,"d":"0.00 RSD"}},{"$f":"SUMIFS(TroškoviPoStavkama[Proverite iznos],TroškoviPoStavkama[G/L kôd],RezimeMesečnihTroškova[[#This Row],[G/L kôd]],TroškoviPoStavkama[Datum fakture],\">=\"&O$3,TroškoviPoStavkama[Datum fakture],\"<=\"&O$4)+SUMIFS(Drugo[Proverite iznos],Drugo[G/L kôd],RezimeMesečnihTroškova[[#This Row],[G/L kôd]],Drugo[Pokrenut je zahtev za proveru datuma],\">=\"&DATEVALUE(\" 1 \"&RezimeMesečnihTroškova[[#Headers],[decembar]]&_GODINA),Drugo[Pokrenut je zahtev za proveru datuma],\"<=\"&O$4)","v":{"v":0,"d":"0.00 RSD"}},{"$f":"SUM(RezimeMesečnihTroškova[[#This Row],[januar]:[decembar]])","v":{"v":0,"d":"0.00 RSD"}}]
[null,8000,"Zdravstveni plan",{"$f":"SUMIFS(TroškoviPoStavkama[Proverite iznos],TroškoviPoStavkama[G/L kôd],RezimeMesečnihTroškova[[#This Row],[G/L kôd]],TroškoviPoStavkama[Datum fakture],\">=\"&D$3,TroškoviPoStavkama[Datum fakture],\"<=\"&D$4)+SUMIFS(Drugo[Proverite iznos],Drugo[G/L kôd],RezimeMesečnihTroškova[[#This Row],[G/L kôd]],Drugo[Pokrenut je zahtev za proveru datuma],\">=\"&DATEVALUE(\" 1 \"&RezimeMesečnihTroškova[[#Headers],[januar]]&_GODINA),Drugo[Pokrenut je zahtev za proveru datuma],\"<=\"&D$4)","v":{"v":0,"d":"0.00 RSD"}},{"$f":"SUMIFS(TroškoviPoStavkama[Proverite iznos],TroškoviPoStavkama[G/L kôd],RezimeMesečnihTroškova[[#This Row],[G/L kôd]],TroškoviPoStavkama[Datum fakture],\">=\"&E$3,TroškoviPoStavkama[Datum fakture],\"<=\"&E$4)+SUMIFS(Drugo[Proverite iznos],Drugo[G/L kôd],RezimeMesečnihTroškova[[#This Row],[G/L kôd]],Drugo[Pokrenut je zahtev za proveru datuma],\">=\"&DATEVALUE(\" 1 \"&RezimeMesečnihTroškova[[#Headers],[Februar]]&_GODINA),Drugo[Pokrenut je zahtev za proveru datuma],\"<=\"&E$4)","v":{"v":0,"d":"0.00 RSD"}},{"$f":"SUMIFS(TroškoviPoStavkama[Proverite iznos],TroškoviPoStavkama[G/L kôd],RezimeMesečnihTroškova[[#This Row],[G/L kôd]],TroškoviPoStavkama[Datum fakture],\">=\"&F$3,TroškoviPoStavkama[Datum fakture],\"<=\"&F$4)+SUMIFS(Drugo[Proverite iznos],Drugo[G/L kôd],RezimeMesečnihTroškova[[#This Row],[G/L kôd]],Drugo[Pokrenut je zahtev za proveru datuma],\">=\"&DATEVALUE(\" 1 \"&RezimeMesečnihTroškova[[#Headers],[Mart]]&_GODINA),Drugo[Pokrenut je zahtev za proveru datuma],\"<=\"&F$4)","v":{"v":0,"d":"0.00 RSD"}},{"$f":"SUMIFS(TroškoviPoStavkama[Proverite iznos],TroškoviPoStavkama[G/L kôd],RezimeMesečnihTroškova[[#This Row],[G/L kôd]],TroškoviPoStavkama[Datum fakture],\">=\"&G$3,TroškoviPoStavkama[Datum fakture],\"<=\"&G$4)+SUMIFS(Drugo[Proverite iznos],Drugo[G/L kôd],RezimeMesečnihTroškova[[#This Row],[G/L kôd]],Drugo[Pokrenut je zahtev za proveru datuma],\">=\"&DATEVALUE(\" 1 \"&RezimeMesečnihTroškova[[#Headers],[April]]&_GODINA),Drugo[Pokrenut je zahtev za proveru datuma],\"<=\"&G$4)","v":{"v":0,"d":"0.00 RSD"}},{"$f":"SUMIFS(TroškoviPoStavkama[Proverite iznos],TroškoviPoStavkama[G/L kôd],RezimeMesečnihTroškova[[#This Row],[G/L kôd]],TroškoviPoStavkama[Datum fakture],\">=\"&H$3,TroškoviPoStavkama[Datum fakture],\"<=\"&H$4)+SUMIFS(Drugo[Proverite iznos],Drugo[G/L kôd],RezimeMesečnihTroškova[[#This Row],[G/L kôd]],Drugo[Pokrenut je zahtev za proveru datuma],\">=\"&DATEVALUE(\" 1 \"&RezimeMesečnihTroškova[[#Headers],[Maj]]&_GODINA),Drugo[Pokrenut je zahtev za proveru datuma],\"<=\"&H$4)","v":{"v":0,"d":"0.00 RSD"}},{"$f":"SUMIFS(TroškoviPoStavkama[Proverite iznos],TroškoviPoStavkama[G/L kôd],RezimeMesečnihTroškova[[#This Row],[G/L kôd]],TroškoviPoStavkama[Datum fakture],\">=\"&I$3,TroškoviPoStavkama[Datum fakture],\"<=\"&I$4)+SUMIFS(Drugo[Proverite iznos],Drugo[G/L kôd],RezimeMesečnihTroškova[[#This Row],[G/L kôd]],Drugo[Pokrenut je zahtev za proveru datuma],\">=\"&DATEVALUE(\" 1 \"&RezimeMesečnihTroškova[[#Headers],[Jun]]&_GODINA),Drugo[Pokrenut je zahtev za proveru datuma],\"<=\"&I$4)","v":{"v":0,"d":"0.00 RSD"}},{"$f":"SUMIFS(TroškoviPoStavkama[Proverite iznos],TroškoviPoStavkama[G/L kôd],RezimeMesečnihTroškova[[#This Row],[G/L kôd]],TroškoviPoStavkama[Datum fakture],\">=\"&J$3,TroškoviPoStavkama[Datum fakture],\"<=\"&J$4)+SUMIFS(Drugo[Proverite iznos],Drugo[G/L kôd],RezimeMesečnihTroškova[[#This Row],[G/L kôd]],Drugo[Pokrenut je zahtev za proveru datuma],\">=\"&DATEVALUE(\" 1 \"&RezimeMesečnihTroškova[[#Headers],[Jul]]&_GODINA),Drugo[Pokrenut je zahtev za proveru datuma],\"<=\"&J$4)","v":{"v":0,"d":"0.00 RSD"}},{"$f":"SUMIFS(TroškoviPoStavkama[Proverite iznos],TroškoviPoStavkama[G/L kôd],RezimeMesečnihTroškova[[#This Row],[G/L kôd]],TroškoviPoStavkama[Datum fakture],\">=\"&K$3,TroškoviPoStavkama[Datum fakture],\"<=\"&K$4)+SUMIFS(Drugo[Proverite iznos],Drugo[G/L kôd],RezimeMesečnihTroškova[[#This Row],[G/L kôd]],Drugo[Pokrenut je zahtev za proveru datuma],\">=\"&DATEVALUE(\" 1 \"&RezimeMesečnihTroškova[[#Headers],[Avgust]]&_GODINA),Drugo[Pokrenut je zahtev za proveru datuma],\"<=\"&K$4)","v":{"v":0,"d":"0.00 RSD"}},{"$f":"SUMIFS(TroškoviPoStavkama[Proverite iznos],TroškoviPoStavkama[G/L kôd],RezimeMesečnihTroškova[[#This Row],[G/L kôd]],TroškoviPoStavkama[Datum fakture],\">=\"&L$3,TroškoviPoStavkama[Datum fakture],\"<=\"&L$4)+SUMIFS(Drugo[Proverite iznos],Drugo[G/L kôd],RezimeMesečnihTroškova[[#This Row],[G/L kôd]],Drugo[Pokrenut je zahtev za proveru datuma],\">=\"&DATEVALUE(\" 1 \"&RezimeMesečnihTroškova[[#Headers],[Septembar]]&_GODINA),Drugo[Pokrenut je zahtev za proveru datuma],\"<=\"&L$4)","v":{"v":0,"d":"0.00 RSD"}},{"$f":"SUMIFS(TroškoviPoStavkama[Proverite iznos],TroškoviPoStavkama[G/L kôd],RezimeMesečnihTroškova[[#This Row],[G/L kôd]],TroškoviPoStavkama[Datum fakture],\">=\"&M$3,TroškoviPoStavkama[Datum fakture],\"<=\"&M$4)+SUMIFS(Drugo[Proverite iznos],Drugo[G/L kôd],RezimeMesečnihTroškova[[#This Row],[G/L kôd]],Drugo[Pokrenut je zahtev za proveru datuma],\">=\"&DATEVALUE(\" 1 \"&RezimeMesečnihTroškova[[#Headers],[Oktobar]]&_GODINA),Drugo[Pokrenut je zahtev za proveru datuma],\"<=\"&M$4)","v":{"v":0,"d":"0.00 RSD"}},{"$f":"SUMIFS(TroškoviPoStavkama[Proverite iznos],TroškoviPoStavkama[G/L kôd],RezimeMesečnihTroškova[[#This Row],[G/L kôd]],TroškoviPoStavkama[Datum fakture],\">=\"&N$3,TroškoviPoStavkama[Datum fakture],\"<=\"&N$4)+SUMIFS(Drugo[Proverite iznos],Drugo[G/L kôd],RezimeMesečnihTroškova[[#This Row],[G/L kôd]],Drugo[Pokrenut je zahtev za proveru datuma],\">=\"&DATEVALUE(\" 1 \"&RezimeMesečnihTroškova[[#Headers],[Novembar]]&_GODINA),Drugo[Pokrenut je zahtev za proveru datuma],\"<=\"&N$4)","v":{"v":0,"d":"0.00 RSD"}},{"$f":"SUMIFS(TroškoviPoStavkama[Proverite iznos],TroškoviPoStavkama[G/L kôd],RezimeMesečnihTroškova[[#This Row],[G/L kôd]],TroškoviPoStavkama[Datum fakture],\">=\"&O$3,TroškoviPoStavkama[Datum fakture],\"<=\"&O$4)+SUMIFS(Drugo[Proverite iznos],Drugo[G/L kôd],RezimeMesečnihTroškova[[#This Row],[G/L kôd]],Drugo[Pokrenut je zahtev za proveru datuma],\">=\"&DATEVALUE(\" 1 \"&RezimeMesečnihTroškova[[#Headers],[decembar]]&_GODINA),Drugo[Pokrenut je zahtev za proveru datuma],\"<=\"&O$4)","v":{"v":0,"d":"0.00 RSD"}},{"$f":"SUM(RezimeMesečnihTroškova[[#This Row],[januar]:[decembar]])","v":{"v":0,"d":"0.00 RSD"}}]
[null,9000,"Troškovi izgradnje",{"$f":"SUMIFS(TroškoviPoStavkama[Proverite iznos],TroškoviPoStavkama[G/L kôd],RezimeMesečnihTroškova[[#This Row],[G/L kôd]],TroškoviPoStavkama[Datum fakture],\">=\"&D$3,TroškoviPoStavkama[Datum fakture],\"<=\"&D$4)+SUMIFS(Drugo[Proverite iznos],Drugo[G/L kôd],RezimeMesečnihTroškova[[#This Row],[G/L kôd]],Drugo[Pokrenut je zahtev za proveru datuma],\">=\"&DATEVALUE(\" 1 \"&RezimeMesečnihTroškova[[#Headers],[januar]]&_GODINA),Drugo[Pokrenut je zahtev za proveru datuma],\"<=\"&D$4)","v":{"v":0,"d":"0.00 RSD"}},{"$f":"SUMIFS(TroškoviPoStavkama[Proverite iznos],TroškoviPoStavkama[G/L kôd],RezimeMesečnihTroškova[[#This Row],[G/L kôd]],TroškoviPoStavkama[Datum fakture],\">=\"&E$3,TroškoviPoStavkama[Datum fakture],\"<=\"&E$4)+SUMIFS(Drugo[Proverite iznos],Drugo[G/L kôd],RezimeMesečnihTroškova[[#This Row],[G/L kôd]],Drugo[Pokrenut je zahtev za proveru datuma],\">=\"&DATEVALUE(\" 1 \"&RezimeMesečnihTroškova[[#Headers],[Februar]]&_GODINA),Drugo[Pokrenut je zahtev za proveru datuma],\"<=\"&E$4)","v":{"v":0,"d":"0.00 RSD"}},{"$f":"SUMIFS(TroškoviPoStavkama[Proverite iznos],TroškoviPoStavkama[G/L kôd],RezimeMesečnihTroškova[[#This Row],[G/L kôd]],TroškoviPoStavkama[Datum fakture],\">=\"&F$3,TroškoviPoStavkama[Datum fakture],\"<=\"&F$4)+SUMIFS(Drugo[Proverite iznos],Drugo[G/L kôd],RezimeMesečnihTroškova[[#This Row],[G/L kôd]],Drugo[Pokrenut je zahtev za proveru datuma],\">=\"&DATEVALUE(\" 1 \"&RezimeMesečnihTroškova[[#Headers],[Mart]]&_GODINA),Drugo[Pokrenut je zahtev za proveru datuma],\"<=\"&F$4)","v":{"v":0,"d":"0.00 RSD"}},{"$f":"SUMIFS(TroškoviPoStavkama[Proverite iznos],TroškoviPoStavkama[G/L kôd],RezimeMesečnihTroškova[[#This Row],[G/L kôd]],TroškoviPoStavkama[Datum fakture],\">=\"&G$3,TroškoviPoStavkama[Datum fakture],\"<=\"&G$4)+SUMIFS(Drugo[Proverite iznos],Drugo[G/L kôd],RezimeMesečnihTroškova[[#This Row],[G/L kôd]],Drugo[Pokrenut je zahtev za proveru datuma],\">=\"&DATEVALUE(\" 1 \"&RezimeMesečnihTroškova[[#Headers],[April]]&_GODINA),Drugo[Pokrenut je zahtev za proveru datuma],\"<=\"&G$4)","v":{"v":0,"d":"0.00 RSD"}},{"$f":"SUMIFS(TroškoviPoStavkama[Proverite iznos],TroškoviPoStavkama[G/L kôd],RezimeMesečnihTroškova[[#This Row],[G/L kôd]],TroškoviPoStavkama[Datum fakture],\">=\"&H$3,TroškoviPoStavkama[Datum fakture],\"<=\"&H$4)+SUMIFS(Drugo[Proverite iznos],Drugo[G/L kôd],RezimeMesečnihTroškova[[#This Row],[G/L kôd]],Drugo[Pokrenut je zahtev za proveru datuma],\">=\"&DATEVALUE(\" 1 \"&RezimeMesečnihTroškova[[#Headers],[Maj]]&_GODINA),Drugo[Pokrenut je zahtev za proveru datuma],\"<=\"&H$4)","v":{"v":0,"d":"0.00 RSD"}},{"$f":"SUMIFS(TroškoviPoStavkama[Proverite iznos],TroškoviPoStavkama[G/L kôd],RezimeMesečnihTroškova[[#This Row],[G/L kôd]],TroškoviPoStavkama[Datum fakture],\">=\"&I$3,TroškoviPoStavkama[Datum fakture],\"<=\"&I$4)+SUMIFS(Drugo[Proverite iznos],Drugo[G/L kôd],RezimeMesečnihTroškova[[#This Row],[G/L kôd]],Drugo[Pokrenut je zahtev za proveru datuma],\">=\"&DATEVALUE(\" 1 \"&RezimeMesečnihTroškova[[#Headers],[Jun]]&_GODINA),Drugo[Pokrenut je zahtev za proveru datuma],\"<=\"&I$4)","v":{"v":0,"d":"0.00 RSD"}},{"$f":"SUMIFS(TroškoviPoStavkama[Proverite iznos],TroškoviPoStavkama[G/L kôd],RezimeMesečnihTroškova[[#This Row],[G/L kôd]],TroškoviPoStavkama[Datum fakture],\">=\"&J$3,TroškoviPoStavkama[Datum fakture],\"<=\"&J$4)+SUMIFS(Drugo[Proverite iznos],Drugo[G/L kôd],RezimeMesečnihTroškova[[#This Row],[G/L kôd]],Drugo[Pokrenut je zahtev za proveru datuma],\">=\"&DATEVALUE(\" 1 \"&RezimeMesečnihTroškova[[#Headers],[Jul]]&_GODINA),Drugo[Pokrenut je zahtev za proveru datuma],\"<=\"&J$4)","v":{"v":0,"d":"0.00 RSD"}},{"$f":"SUMIFS(TroškoviPoStavkama[Proverite iznos],TroškoviPoStavkama[G/L kôd],RezimeMesečnihTroškova[[#This Row],[G/L kôd]],TroškoviPoStavkama[Datum fakture],\">=\"&K$3,TroškoviPoStavkama[Datum fakture],\"<=\"&K$4)+SUMIFS(Drugo[Proverite iznos],Drugo[G/L kôd],RezimeMesečnihTroškova[[#This Row],[G/L kôd]],Drugo[Pokrenut je zahtev za proveru datuma],\">=\"&DATEVALUE(\" 1 \"&RezimeMesečnihTroškova[[#Headers],[Avgust]]&_GODINA),Drugo[Pokrenut je zahtev za proveru datuma],\"<=\"&K$4)","v":{"v":0,"d":"0.00 RSD"}},{"$f":"SUMIFS(TroškoviPoStavkama[Proverite iznos],TroškoviPoStavkama[G/L kôd],RezimeMesečnihTroškova[[#This Row],[G/L kôd]],TroškoviPoStavkama[Datum fakture],\">=\"&L$3,TroškoviPoStavkama[Datum fakture],\"<=\"&L$4)+SUMIFS(Drugo[Proverite iznos],Drugo[G/L kôd],RezimeMesečnihTroškova[[#This Row],[G/L kôd]],Drugo[Pokrenut je zahtev za proveru datuma],\">=\"&DATEVALUE(\" 1 \"&RezimeMesečnihTroškova[[#Headers],[Septembar]]&_GODINA),Drugo[Pokrenut je zahtev za proveru datuma],\"<=\"&L$4)","v":{"v":0,"d":"0.00 RSD"}},{"$f":"SUMIFS(TroškoviPoStavkama[Proverite iznos],TroškoviPoStavkama[G/L kôd],RezimeMesečnihTroškova[[#This Row],[G/L kôd]],TroškoviPoStavkama[Datum fakture],\">=\"&M$3,TroškoviPoStavkama[Datum fakture],\"<=\"&M$4)+SUMIFS(Drugo[Proverite iznos],Drugo[G/L kôd],RezimeMesečnihTroškova[[#This Row],[G/L kôd]],Drugo[Pokrenut je zahtev za proveru datuma],\">=\"&DATEVALUE(\" 1 \"&RezimeMesečnihTroškova[[#Headers],[Oktobar]]&_GODINA),Drugo[Pokrenut je zahtev za proveru datuma],\"<=\"&M$4)","v":{"v":0,"d":"0.00 RSD"}},{"$f":"SUMIFS(TroškoviPoStavkama[Proverite iznos],TroškoviPoStavkama[G/L kôd],RezimeMesečnihTroškova[[#This Row],[G/L kôd]],TroškoviPoStavkama[Datum fakture],\">=\"&N$3,TroškoviPoStavkama[Datum fakture],\"<=\"&N$4)+SUMIFS(Drugo[Proverite iznos],Drugo[G/L kôd],RezimeMesečnihTroškova[[#This Row],[G/L kôd]],Drugo[Pokrenut je zahtev za proveru datuma],\">=\"&DATEVALUE(\" 1 \"&RezimeMesečnihTroškova[[#Headers],[Novembar]]&_GODINA),Drugo[Pokrenut je zahtev za proveru datuma],\"<=\"&N$4)","v":{"v":0,"d":"0.00 RSD"}},{"$f":"SUMIFS(TroškoviPoStavkama[Proverite iznos],TroškoviPoStavkama[G/L kôd],RezimeMesečnihTroškova[[#This Row],[G/L kôd]],TroškoviPoStavkama[Datum fakture],\">=\"&O$3,TroškoviPoStavkama[Datum fakture],\"<=\"&O$4)+SUMIFS(Drugo[Proverite iznos],Drugo[G/L kôd],RezimeMesečnihTroškova[[#This Row],[G/L kôd]],Drugo[Pokrenut je zahtev za proveru datuma],\">=\"&DATEVALUE(\" 1 \"&RezimeMesečnihTroškova[[#Headers],[decembar]]&_GODINA),Drugo[Pokrenut je zahtev za proveru datuma],\"<=\"&O$4)","v":{"v":0,"d":"0.00 RSD"}},{"$f":"SUM(RezimeMesečnihTroškova[[#This Row],[januar]:[decembar]])","v":{"v":0,"d":"0.00 RSD"}}]
[null,10000,"Marketing",{"$f":"SUMIFS(TroškoviPoStavkama[Proverite iznos],TroškoviPoStavkama[G/L kôd],RezimeMesečnihTroškova[[#This Row],[G/L kôd]],TroškoviPoStavkama[Datum fakture],\">=\"&D$3,TroškoviPoStavkama[Datum fakture],\"<=\"&D$4)+SUMIFS(Drugo[Proverite iznos],Drugo[G/L kôd],RezimeMesečnihTroškova[[#This Row],[G/L kôd]],Drugo[Pokrenut je zahtev za proveru datuma],\">=\"&DATEVALUE(\" 1 \"&RezimeMesečnihTroškova[[#Headers],[januar]]&_GODINA),Drugo[Pokrenut je zahtev za proveru datuma],\"<=\"&D$4)","v":{"v":0,"d":"0.00 RSD"}},{"$f":"SUMIFS(TroškoviPoStavkama[Proverite iznos],TroškoviPoStavkama[G/L kôd],RezimeMesečnihTroškova[[#This Row],[G/L kôd]],TroškoviPoStavkama[Datum fakture],\">=\"&E$3,TroškoviPoStavkama[Datum fakture],\"<=\"&E$4)+SUMIFS(Drugo[Proverite iznos],Drugo[G/L kôd],RezimeMesečnihTroškova[[#This Row],[G/L kôd]],Drugo[Pokrenut je zahtev za proveru datuma],\">=\"&DATEVALUE(\" 1 \"&RezimeMesečnihTroškova[[#Headers],[Februar]]&_GODINA),Drugo[Pokrenut je zahtev za proveru datuma],\"<=\"&E$4)","v":{"v":0,"d":"0.00 RSD"}},{"$f":"SUMIFS(TroškoviPoStavkama[Proverite iznos],TroškoviPoStavkama[G/L kôd],RezimeMesečnihTroškova[[#This Row],[G/L kôd]],TroškoviPoStavkama[Datum fakture],\">=\"&F$3,TroškoviPoStavkama[Datum fakture],\"<=\"&F$4)+SUMIFS(Drugo[Proverite iznos],Drugo[G/L kôd],RezimeMesečnihTroškova[[#This Row],[G/L kôd]],Drugo[Pokrenut je zahtev za proveru datuma],\">=\"&DATEVALUE(\" 1 \"&RezimeMesečnihTroškova[[#Headers],[Mart]]&_GODINA),Drugo[Pokrenut je zahtev za proveru datuma],\"<=\"&F$4)","v":{"v":0,"d":"0.00 RSD"}},{"$f":"SUMIFS(TroškoviPoStavkama[Proverite iznos],TroškoviPoStavkama[G/L kôd],RezimeMesečnihTroškova[[#This Row],[G/L kôd]],TroškoviPoStavkama[Datum fakture],\">=\"&G$3,TroškoviPoStavkama[Datum fakture],\"<=\"&G$4)+SUMIFS(Drugo[Proverite iznos],Drugo[G/L kôd],RezimeMesečnihTroškova[[#This Row],[G/L kôd]],Drugo[Pokrenut je zahtev za proveru datuma],\">=\"&DATEVALUE(\" 1 \"&RezimeMesečnihTroškova[[#Headers],[April]]&_GODINA),Drugo[Pokrenut je zahtev za proveru datuma],\"<=\"&G$4)","v":{"v":0,"d":"0.00 RSD"}},{"$f":"SUMIFS(TroškoviPoStavkama[Proverite iznos],TroškoviPoStavkama[G/L kôd],RezimeMesečnihTroškova[[#This Row],[G/L kôd]],TroškoviPoStavkama[Datum fakture],\">=\"&H$3,TroškoviPoStavkama[Datum fakture],\"<=\"&H$4)+SUMIFS(Drugo[Proverite iznos],Drugo[G/L kôd],RezimeMesečnihTroškova[[#This Row],[G/L kôd]],Drugo[Pokrenut je zahtev za proveru datuma],\">=\"&DATEVALUE(\" 1 \"&RezimeMesečnihTroškova[[#Headers],[Maj]]&_GODINA),Drugo[Pokrenut je zahtev za proveru datuma],\"<=\"&H$4)","v":{"v":0,"d":"0.00 RSD"}},{"$f":"SUMIFS(TroškoviPoStavkama[Proverite iznos],TroškoviPoStavkama[G/L kôd],RezimeMesečnihTroškova[[#This Row],[G/L kôd]],TroškoviPoStavkama[Datum fakture],\">=\"&I$3,TroškoviPoStavkama[Datum fakture],\"<=\"&I$4)+SUMIFS(Drugo[Proverite iznos],Drugo[G/L kôd],RezimeMesečnihTroškova[[#This Row],[G/L kôd]],Drugo[Pokrenut je zahtev za proveru datuma],\">=\"&DATEVALUE(\" 1 \"&RezimeMesečnihTroškova[[#Headers],[Jun]]&_GODINA),Drugo[Pokrenut je zahtev za proveru datuma],\"<=\"&I$4)","v":{"v":0,"d":"0.00 RSD"}},{"$f":"SUMIFS(TroškoviPoStavkama[Proverite iznos],TroškoviPoStavkama[G/L kôd],RezimeMesečnihTroškova[[#This Row],[G/L kôd]],TroškoviPoStavkama[Datum fakture],\">=\"&J$3,TroškoviPoStavkama[Datum fakture],\"<=\"&J$4)+SUMIFS(Drugo[Proverite iznos],Drugo[G/L kôd],RezimeMesečnihTroškova[[#This Row],[G/L kôd]],Drugo[Pokrenut je zahtev za proveru datuma],\">=\"&DATEVALUE(\" 1 \"&RezimeMesečnihTroškova[[#Headers],[Jul]]&_GODINA),Drugo[Pokrenut je zahtev za proveru datuma],\"<=\"&J$4)","v":{"v":0,"d":"0.00 RSD"}},{"$f":"SUMIFS(TroškoviPoStavkama[Proverite iznos],TroškoviPoStavkama[G/L kôd],RezimeMesečnihTroškova[[#This Row],[G/L kôd]],TroškoviPoStavkama[Datum fakture],\">=\"&K$3,TroškoviPoStavkama[Datum fakture],\"<=\"&K$4)+SUMIFS(Drugo[Proverite iznos],Drugo[G/L kôd],RezimeMesečnihTroškova[[#This Row],[G/L kôd]],Drugo[Pokrenut je zahtev za proveru datuma],\">=\"&DATEVALUE(\" 1 \"&RezimeMesečnihTroškova[[#Headers],[Avgust]]&_GODINA),Drugo[Pokrenut je zahtev za proveru datuma],\"<=\"&K$4)","v":{"v":0,"d":"0.00 RSD"}},{"$f":"SUMIFS(TroškoviPoStavkama[Proverite iznos],TroškoviPoStavkama[G/L kôd],RezimeMesečnihTroškova[[#This Row],[G/L kôd]],TroškoviPoStavkama[Datum fakture],\">=\"&L$3,TroškoviPoStavkama[Datum fakture],\"<=\"&L$4)+SUMIFS(Drugo[Proverite iznos],Drugo[G/L kôd],RezimeMesečnihTroškova[[#This Row],[G/L kôd]],Drugo[Pokrenut je zahtev za proveru datuma],\">=\"&DATEVALUE(\" 1 \"&RezimeMesečnihTroškova[[#Headers],[Septembar]]&_GODINA),Drugo[Pokrenut je zahtev za proveru datuma],\"<=\"&L$4)","v":{"v":0,"d":"0.00 RSD"}},{"$f":"SUMIFS(TroškoviPoStavkama[Proverite iznos],TroškoviPoStavkama[G/L kôd],RezimeMesečnihTroškova[[#This Row],[G/L kôd]],TroškoviPoStavkama[Datum fakture],\">=\"&M$3,TroškoviPoStavkama[Datum fakture],\"<=\"&M$4)+SUMIFS(Drugo[Proverite iznos],Drugo[G/L kôd],RezimeMesečnihTroškova[[#This Row],[G/L kôd]],Drugo[Pokrenut je zahtev za proveru datuma],\">=\"&DATEVALUE(\" 1 \"&RezimeMesečnihTroškova[[#Headers],[Oktobar]]&_GODINA),Drugo[Pokrenut je zahtev za proveru datuma],\"<=\"&M$4)","v":{"v":0,"d":"0.00 RSD"}},{"$f":"SUMIFS(TroškoviPoStavkama[Proverite iznos],TroškoviPoStavkama[G/L kôd],RezimeMesečnihTroškova[[#This Row],[G/L kôd]],TroškoviPoStavkama[Datum fakture],\">=\"&N$3,TroškoviPoStavkama[Datum fakture],\"<=\"&N$4)+SUMIFS(Drugo[Proverite iznos],Drugo[G/L kôd],RezimeMesečnihTroškova[[#This Row],[G/L kôd]],Drugo[Pokrenut je zahtev za proveru datuma],\">=\"&DATEVALUE(\" 1 \"&RezimeMesečnihTroškova[[#Headers],[Novembar]]&_GODINA),Drugo[Pokrenut je zahtev za proveru datuma],\"<=\"&N$4)","v":{"v":0,"d":"0.00 RSD"}},{"$f":"SUMIFS(TroškoviPoStavkama[Proverite iznos],TroškoviPoStavkama[G/L kôd],RezimeMesečnihTroškova[[#This Row],[G/L kôd]],TroškoviPoStavkama[Datum fakture],\">=\"&O$3,TroškoviPoStavkama[Datum fakture],\"<=\"&O$4)+SUMIFS(Drugo[Proverite iznos],Drugo[G/L kôd],RezimeMesečnihTroškova[[#This Row],[G/L kôd]],Drugo[Pokrenut je zahtev za proveru datuma],\">=\"&DATEVALUE(\" 1 \"&RezimeMesečnihTroškova[[#Headers],[decembar]]&_GODINA),Drugo[Pokrenut je zahtev za proveru datuma],\"<=\"&O$4)","v":{"v":0,"d":"0.00 RSD"}},{"$f":"SUM(RezimeMesečnihTroškova[[#This Row],[januar]:[decembar]])","v":{"v":0,"d":"0.00 RSD"}}]
[null,11000,"Dobrotvorne akcije",{"$f":"SUMIFS(TroškoviPoStavkama[Proverite iznos],TroškoviPoStavkama[G/L kôd],RezimeMesečnihTroškova[[#This Row],[G/L kôd]],TroškoviPoStavkama[Datum fakture],\">=\"&D$3,TroškoviPoStavkama[Datum fakture],\"<=\"&D$4)+SUMIFS(Drugo[Proverite iznos],Drugo[G/L kôd],RezimeMesečnihTroškova[[#This Row],[G/L kôd]],Drugo[Pokrenut je zahtev za proveru datuma],\">=\"&DATEVALUE(\" 1 \"&RezimeMesečnihTroškova[[#Headers],[januar]]&_GODINA),Drugo[Pokrenut je zahtev za proveru datuma],\"<=\"&D$4)","v":{"v":0,"d":"0.00 RSD"}},{"$f":"SUMIFS(TroškoviPoStavkama[Proverite iznos],TroškoviPoStavkama[G/L kôd],RezimeMesečnihTroškova[[#This Row],[G/L kôd]],TroškoviPoStavkama[Datum fakture],\">=\"&E$3,TroškoviPoStavkama[Datum fakture],\"<=\"&E$4)+SUMIFS(Drugo[Proverite iznos],Drugo[G/L kôd],RezimeMesečnihTroškova[[#This Row],[G/L kôd]],Drugo[Pokrenut je zahtev za proveru datuma],\">=\"&DATEVALUE(\" 1 \"&RezimeMesečnihTroškova[[#Headers],[Februar]]&_GODINA),Drugo[Pokrenut je zahtev za proveru datuma],\"<=\"&E$4)","v":{"v":0,"d":"0.00 RSD"}},{"$f":"SUMIFS(TroškoviPoStavkama[Proverite iznos],TroškoviPoStavkama[G/L kôd],RezimeMesečnihTroškova[[#This Row],[G/L kôd]],TroškoviPoStavkama[Datum fakture],\">=\"&F$3,TroškoviPoStavkama[Datum fakture],\"<=\"&F$4)+SUMIFS(Drugo[Proverite iznos],Drugo[G/L kôd],RezimeMesečnihTroškova[[#This Row],[G/L kôd]],Drugo[Pokrenut je zahtev za proveru datuma],\">=\"&DATEVALUE(\" 1 \"&RezimeMesečnihTroškova[[#Headers],[Mart]]&_GODINA),Drugo[Pokrenut je zahtev za proveru datuma],\"<=\"&F$4)","v":{"v":0,"d":"0.00 RSD"}},{"$f":"SUMIFS(TroškoviPoStavkama[Proverite iznos],TroškoviPoStavkama[G/L kôd],RezimeMesečnihTroškova[[#This Row],[G/L kôd]],TroškoviPoStavkama[Datum fakture],\">=\"&G$3,TroškoviPoStavkama[Datum fakture],\"<=\"&G$4)+SUMIFS(Drugo[Proverite iznos],Drugo[G/L kôd],RezimeMesečnihTroškova[[#This Row],[G/L kôd]],Drugo[Pokrenut je zahtev za proveru datuma],\">=\"&DATEVALUE(\" 1 \"&RezimeMesečnihTroškova[[#Headers],[April]]&_GODINA),Drugo[Pokrenut je zahtev za proveru datuma],\"<=\"&G$4)","v":{"v":0,"d":"0.00 RSD"}},{"$f":"SUMIFS(TroškoviPoStavkama[Proverite iznos],TroškoviPoStavkama[G/L kôd],RezimeMesečnihTroškova[[#This Row],[G/L kôd]],TroškoviPoStavkama[Datum fakture],\">=\"&H$3,TroškoviPoStavkama[Datum fakture],\"<=\"&H$4)+SUMIFS(Drugo[Proverite iznos],Drugo[G/L kôd],RezimeMesečnihTroškova[[#This Row],[G/L kôd]],Drugo[Pokrenut je zahtev za proveru datuma],\">=\"&DATEVALUE(\" 1 \"&RezimeMesečnihTroškova[[#Headers],[Maj]]&_GODINA),Drugo[Pokrenut je zahtev za proveru datuma],\"<=\"&H$4)","v":{"v":0,"d":"0.00 RSD"}},{"$f":"SUMIFS(TroškoviPoStavkama[Proverite iznos],TroškoviPoStavkama[G/L kôd],RezimeMesečnihTroškova[[#This Row],[G/L kôd]],TroškoviPoStavkama[Datum fakture],\">=\"&I$3,TroškoviPoStavkama[Datum fakture],\"<=\"&I$4)+SUMIFS(Drugo[Proverite iznos],Drugo[G/L kôd],RezimeMesečnihTroškova[[#This Row],[G/L kôd]],Drugo[Pokrenut je zahtev za proveru datuma],\">=\"&DATEVALUE(\" 1 \"&RezimeMesečnihTroškova[[#Headers],[Jun]]&_GODINA),Drugo[Pokrenut je zahtev za proveru datuma],\"<=\"&I$4)","v":{"v":0,"d":"0.00 RSD"}},{"$f":"SUMIFS(TroškoviPoStavkama[Proverite iznos],TroškoviPoStavkama[G/L kôd],RezimeMesečnihTroškova[[#This Row],[G/L kôd]],TroškoviPoStavkama[Datum fakture],\">=\"&J$3,TroškoviPoStavkama[Datum fakture],\"<=\"&J$4)+SUMIFS(Drugo[Proverite iznos],Drugo[G/L kôd],RezimeMesečnihTroškova[[#This Row],[G/L kôd]],Drugo[Pokrenut je zahtev za proveru datuma],\">=\"&DATEVALUE(\" 1 \"&RezimeMesečnihTroškova[[#Headers],[Jul]]&_GODINA),Drugo[Pokrenut je zahtev za proveru datuma],\"<=\"&J$4)","v":{"v":0,"d":"0.00 RSD"}},{"$f":"SUMIFS(TroškoviPoStavkama[Proverite iznos],TroškoviPoStavkama[G/L kôd],RezimeMesečnihTroškova[[#This Row],[G/L kôd]],TroškoviPoStavkama[Datum fakture],\">=\"&K$3,TroškoviPoStavkama[Datum fakture],\"<=\"&K$4)+SUMIFS(Drugo[Proverite iznos],Drugo[G/L kôd],RezimeMesečnihTroškova[[#This Row],[G/L kôd]],Drugo[Pokrenut je zahtev za proveru datuma],\">=\"&DATEVALUE(\" 1 \"&RezimeMesečnihTroškova[[#Headers],[Avgust]]&_GODINA),Drugo[Pokrenut je zahtev za proveru datuma],\"<=\"&K$4)","v":{"v":0,"d":"0.00 RSD"}},{"$f":"SUMIFS(TroškoviPoStavkama[Proverite iznos],TroškoviPoStavkama[G/L kôd],RezimeMesečnihTroškova[[#This Row],[G/L kôd]],TroškoviPoStavkama[Datum fakture],\">=\"&L$3,TroškoviPoStavkama[Datum fakture],\"<=\"&L$4)+SUMIFS(Drugo[Proverite iznos],Drugo[G/L kôd],RezimeMesečnihTroškova[[#This Row],[G/L kôd]],Drugo[Pokrenut je zahtev za proveru datuma],\">=\"&DATEVALUE(\" 1 \"&RezimeMesečnihTroškova[[#Headers],[Septembar]]&_GODINA),Drugo[Pokrenut je zahtev za proveru datuma],\"<=\"&L$4)","v":{"v":0,"d":"0.00 RSD"}},{"$f":"SUMIFS(TroškoviPoStavkama[Proverite iznos],TroškoviPoStavkama[G/L kôd],RezimeMesečnihTroškova[[#This Row],[G/L kôd]],TroškoviPoStavkama[Datum fakture],\">=\"&M$3,TroškoviPoStavkama[Datum fakture],\"<=\"&M$4)+SUMIFS(Drugo[Proverite iznos],Drugo[G/L kôd],RezimeMesečnihTroškova[[#This Row],[G/L kôd]],Drugo[Pokrenut je zahtev za proveru datuma],\">=\"&DATEVALUE(\" 1 \"&RezimeMesečnihTroškova[[#Headers],[Oktobar]]&_GODINA),Drugo[Pokrenut je zahtev za proveru datuma],\"<=\"&M$4)","v":{"v":0,"d":"0.00 RSD"}},{"$f":"SUMIFS(TroškoviPoStavkama[Proverite iznos],TroškoviPoStavkama[G/L kôd],RezimeMesečnihTroškova[[#This Row],[G/L kôd]],TroškoviPoStavkama[Datum fakture],\">=\"&N$3,TroškoviPoStavkama[Datum fakture],\"<=\"&N$4)+SUMIFS(Drugo[Proverite iznos],Drugo[G/L kôd],RezimeMesečnihTroškova[[#This Row],[G/L kôd]],Drugo[Pokrenut je zahtev za proveru datuma],\">=\"&DATEVALUE(\" 1 \"&RezimeMesečnihTroškova[[#Headers],[Novembar]]&_GODINA),Drugo[Pokrenut je zahtev za proveru datuma],\"<=\"&N$4)","v":{"v":0,"d":"0.00 RSD"}},{"$f":"SUMIFS(TroškoviPoStavkama[Proverite iznos],TroškoviPoStavkama[G/L kôd],RezimeMesečnihTroškova[[#This Row],[G/L kôd]],TroškoviPoStavkama[Datum fakture],\">=\"&O$3,TroškoviPoStavkama[Datum fakture],\"<=\"&O$4)+SUMIFS(Drugo[Proverite iznos],Drugo[G/L kôd],RezimeMesečnihTroškova[[#This Row],[G/L kôd]],Drugo[Pokrenut je zahtev za proveru datuma],\">=\"&DATEVALUE(\" 1 \"&RezimeMesečnihTroškova[[#Headers],[decembar]]&_GODINA),Drugo[Pokrenut je zahtev za proveru datuma],\"<=\"&O$4)","v":{"v":0,"d":"0.00 RSD"}},{"$f":"SUM(RezimeMesečnihTroškova[[#This Row],[januar]:[decembar]])","v":{"v":0,"d":"0.00 RSD"}}]
[null,12000,"Sponzorstva",{"$f":"SUMIFS(TroškoviPoStavkama[Proverite iznos],TroškoviPoStavkama[G/L kôd],RezimeMesečnihTroškova[[#This Row],[G/L kôd]],TroškoviPoStavkama[Datum fakture],\">=\"&D$3,TroškoviPoStavkama[Datum fakture],\"<=\"&D$4)+SUMIFS(Drugo[Proverite iznos],Drugo[G/L kôd],RezimeMesečnihTroškova[[#This Row],[G/L kôd]],Drugo[Pokrenut je zahtev za proveru datuma],\">=\"&DATEVALUE(\" 1 \"&RezimeMesečnihTroškova[[#Headers],[januar]]&_GODINA),Drugo[Pokrenut je zahtev za proveru datuma],\"<=\"&D$4)","v":{"v":0,"d":"0.00 RSD"}},{"$f":"SUMIFS(TroškoviPoStavkama[Proverite iznos],TroškoviPoStavkama[G/L kôd],RezimeMesečnihTroškova[[#This Row],[G/L kôd]],TroškoviPoStavkama[Datum fakture],\">=\"&E$3,TroškoviPoStavkama[Datum fakture],\"<=\"&E$4)+SUMIFS(Drugo[Proverite iznos],Drugo[G/L kôd],RezimeMesečnihTroškova[[#This Row],[G/L kôd]],Drugo[Pokrenut je zahtev za proveru datuma],\">=\"&DATEVALUE(\" 1 \"&RezimeMesečnihTroškova[[#Headers],[Februar]]&_GODINA),Drugo[Pokrenut je zahtev za proveru datuma],\"<=\"&E$4)","v":{"v":0,"d":"0.00 RSD"}},{"$f":"SUMIFS(TroškoviPoStavkama[Proverite iznos],TroškoviPoStavkama[G/L kôd],RezimeMesečnihTroškova[[#This Row],[G/L kôd]],TroškoviPoStavkama[Datum fakture],\">=\"&F$3,TroškoviPoStavkama[Datum fakture],\"<=\"&F$4)+SUMIFS(Drugo[Proverite iznos],Drugo[G/L kôd],RezimeMesečnihTroškova[[#This Row],[G/L kôd]],Drugo[Pokrenut je zahtev za proveru datuma],\">=\"&DATEVALUE(\" 1 \"&RezimeMesečnihTroškova[[#Headers],[Mart]]&_GODINA),Drugo[Pokrenut je zahtev za proveru datuma],\"<=\"&F$4)","v":{"v":0,"d":"0.00 RSD"}},{"$f":"SUMIFS(TroškoviPoStavkama[Proverite iznos],TroškoviPoStavkama[G/L kôd],RezimeMesečnihTroškova[[#This Row],[G/L kôd]],TroškoviPoStavkama[Datum fakture],\">=\"&G$3,TroškoviPoStavkama[Datum fakture],\"<=\"&G$4)+SUMIFS(Drugo[Proverite iznos],Drugo[G/L kôd],RezimeMesečnihTroškova[[#This Row],[G/L kôd]],Drugo[Pokrenut je zahtev za proveru datuma],\">=\"&DATEVALUE(\" 1 \"&RezimeMesečnihTroškova[[#Headers],[April]]&_GODINA),Drugo[Pokrenut je zahtev za proveru datuma],\"<=\"&G$4)","v":{"v":0,"d":"0.00 RSD"}},{"$f":"SUMIFS(TroškoviPoStavkama[Proverite iznos],TroškoviPoStavkama[G/L kôd],RezimeMesečnihTroškova[[#This Row],[G/L kôd]],TroškoviPoStavkama[Datum fakture],\">=\"&H$3,TroškoviPoStavkama[Datum fakture],\"<=\"&H$4)+SUMIFS(Drugo[Proverite iznos],Drugo[G/L kôd],RezimeMesečnihTroškova[[#This Row],[G/L kôd]],Drugo[Pokrenut je zahtev za proveru datuma],\">=\"&DATEVALUE(\" 1 \"&RezimeMesečnihTroškova[[#Headers],[Maj]]&_GODINA),Drugo[Pokrenut je zahtev za proveru datuma],\"<=\"&H$4)","v":{"v":0,"d":"0.00 RSD"}},{"$f":"SUMIFS(TroškoviPoStavkama[Proverite iznos],TroškoviPoStavkama[G/L kôd],RezimeMesečnihTroškova[[#This Row],[G/L kôd]],TroškoviPoStavkama[Datum fakture],\">=\"&I$3,TroškoviPoStavkama[Datum fakture],\"<=\"&I$4)+SUMIFS(Drugo[Proverite iznos],Drugo[G/L kôd],RezimeMesečnihTroškova[[#This Row],[G/L kôd]],Drugo[Pokrenut je zahtev za proveru datuma],\">=\"&DATEVALUE(\" 1 \"&RezimeMesečnihTroškova[[#Headers],[Jun]]&_GODINA),Drugo[Pokrenut je zahtev za proveru datuma],\"<=\"&I$4)","v":{"v":0,"d":"0.00 RSD"}},{"$f":"SUMIFS(TroškoviPoStavkama[Proverite iznos],TroškoviPoStavkama[G/L kôd],RezimeMesečnihTroškova[[#This Row],[G/L kôd]],TroškoviPoStavkama[Datum fakture],\">=\"&J$3,TroškoviPoStavkama[Datum fakture],\"<=\"&J$4)+SUMIFS(Drugo[Proverite iznos],Drugo[G/L kôd],RezimeMesečnihTroškova[[#This Row],[G/L kôd]],Drugo[Pokrenut je zahtev za proveru datuma],\">=\"&DATEVALUE(\" 1 \"&RezimeMesečnihTroškova[[#Headers],[Jul]]&_GODINA),Drugo[Pokrenut je zahtev za proveru datuma],\"<=\"&J$4)","v":{"v":0,"d":"0.00 RSD"}},{"$f":"SUMIFS(TroškoviPoStavkama[Proverite iznos],TroškoviPoStavkama[G/L kôd],RezimeMesečnihTroškova[[#This Row],[G/L kôd]],TroškoviPoStavkama[Datum fakture],\">=\"&K$3,TroškoviPoStavkama[Datum fakture],\"<=\"&K$4)+SUMIFS(Drugo[Proverite iznos],Drugo[G/L kôd],RezimeMesečnihTroškova[[#This Row],[G/L kôd]],Drugo[Pokrenut je zahtev za proveru datuma],\">=\"&DATEVALUE(\" 1 \"&RezimeMesečnihTroškova[[#Headers],[Avgust]]&_GODINA),Drugo[Pokrenut je zahtev za proveru datuma],\"<=\"&K$4)","v":{"v":0,"d":"0.00 RSD"}},{"$f":"SUMIFS(TroškoviPoStavkama[Proverite iznos],TroškoviPoStavkama[G/L kôd],RezimeMesečnihTroškova[[#This Row],[G/L kôd]],TroškoviPoStavkama[Datum fakture],\">=\"&L$3,TroškoviPoStavkama[Datum fakture],\"<=\"&L$4)+SUMIFS(Drugo[Proverite iznos],Drugo[G/L kôd],RezimeMesečnihTroškova[[#This Row],[G/L kôd]],Drugo[Pokrenut je zahtev za proveru datuma],\">=\"&DATEVALUE(\" 1 \"&RezimeMesečnihTroškova[[#Headers],[Septembar]]&_GODINA),Drugo[Pokrenut je zahtev za proveru datuma],\"<=\"&L$4)","v":{"v":0,"d":"0.00 RSD"}},{"$f":"SUMIFS(TroškoviPoStavkama[Proverite iznos],TroškoviPoStavkama[G/L kôd],RezimeMesečnihTroškova[[#This Row],[G/L kôd]],TroškoviPoStavkama[Datum fakture],\">=\"&M$3,TroškoviPoStavkama[Datum fakture],\"<=\"&M$4)+SUMIFS(Drugo[Proverite iznos],Drugo[G/L kôd],RezimeMesečnihTroškova[[#This Row],[G/L kôd]],Drugo[Pokrenut je zahtev za proveru datuma],\">=\"&DATEVALUE(\" 1 \"&RezimeMesečnihTroškova[[#Headers],[Oktobar]]&_GODINA),Drugo[Pokrenut je zahtev za proveru datuma],\"<=\"&M$4)","v":{"v":0,"d":"0.00 RSD"}},{"$f":"SUMIFS(TroškoviPoStavkama[Proverite iznos],TroškoviPoStavkama[G/L kôd],RezimeMesečnihTroškova[[#This Row],[G/L kôd]],TroškoviPoStavkama[Datum fakture],\">=\"&N$3,TroškoviPoStavkama[Datum fakture],\"<=\"&N$4)+SUMIFS(Drugo[Proverite iznos],Drugo[G/L kôd],RezimeMesečnihTroškova[[#This Row],[G/L kôd]],Drugo[Pokrenut je zahtev za proveru datuma],\">=\"&DATEVALUE(\" 1 \"&RezimeMesečnihTroškova[[#Headers],[Novembar]]&_GODINA),Drugo[Pokrenut je zahtev za proveru datuma],\"<=\"&N$4)","v":{"v":0,"d":"0.00 RSD"}},{"$f":"SUMIFS(TroškoviPoStavkama[Proverite iznos],TroškoviPoStavkama[G/L kôd],RezimeMesečnihTroškova[[#This Row],[G/L kôd]],TroškoviPoStavkama[Datum fakture],\">=\"&O$3,TroškoviPoStavkama[Datum fakture],\"<=\"&O$4)+SUMIFS(Drugo[Proverite iznos],Drugo[G/L kôd],RezimeMesečnihTroškova[[#This Row],[G/L kôd]],Drugo[Pokrenut je zahtev za proveru datuma],\">=\"&DATEVALUE(\" 1 \"&RezimeMesečnihTroškova[[#Headers],[decembar]]&_GODINA),Drugo[Pokrenut je zahtev za proveru datuma],\"<=\"&O$4)","v":{"v":0,"d":"0.00 RSD"}},{"$f":"SUM(RezimeMesečnihTroškova[[#This Row],[januar]:[decembar]])","v":{"v":0,"d":"0.00 RSD"}}]
[null,"Zbir",null,{"$f":"SUBTOTAL(109,RezimeMesečnihTroškova[januar])","v":{"v":0,"d":"0.00 RSD"}},{"$f":"SUBTOTAL(109,RezimeMesečnihTroškova[Februar])","v":{"v":0,"d":"0.00 RSD"}},{"$f":"SUBTOTAL(109,RezimeMesečnihTroškova[Mart])","v":{"v":0,"d":"0.00 RSD"}},{"$f":"SUBTOTAL(109,RezimeMesečnihTroškova[April])","v":{"v":0,"d":"0.00 RSD"}},{"$f":"SUBTOTAL(109,RezimeMesečnihTroškova[Maj])","v":{"v":0,"d":"0.00 RSD"}},{"$f":"SUBTOTAL(109,RezimeMesečnihTroškova[Jun])","v":{"v":0,"d":"0.00 RSD"}},{"$f":"SUBTOTAL(109,RezimeMesečnihTroškova[Jul])","v":{"v":0,"d":"0.00 RSD"}},{"$f":"SUBTOTAL(109,RezimeMesečnihTroškova[Avgust])","v":{"v":0,"d":"0.00 RSD"}},{"$f":"SUBTOTAL(109,RezimeMesečnihTroškova[Septembar])","v":{"v":0,"d":"0.00 RSD"}},{"$f":"SUBTOTAL(109,RezimeMesečnihTroškova[Oktobar])","v":{"v":0,"d":"0.00 RSD"}},{"$f":"SUBTOTAL(109,RezimeMesečnihTroškova[Novembar])","v":{"v":0,"d":"0.00 RSD"}},{"$f":"SUBTOTAL(109,RezimeMesečnihTroškova[decembar])","v":{"v":0,"d":"0.00 RSD"}},{"$f":"SUBTOTAL(109,RezimeMesečnihTroškova[Zbir])","v":{"v":0,"d":"0.00 RSD"}}]

{"sheet":"TROŠKOVI PO STAVKAMA","index":2,"n_rows":6,"n_cols":10,"rows_kept":6,"merged":[[1,1,1,9],[2,1,2,5],[2,6,2,9]]}
[]
[null,"TROŠKOVI PO STAVKAMA"]
[]
[null,"G/L kôd","Datum fakture","Br. fakture","Tražio/la","Proverite iznos","Primalac","Provera upotrebe","Metod distribucije","Datum datoteke"]
[null,1000,"Datum",100,"Obrad Gavrilović",{"v":750.75,"d":"750.75 RSD"},"Consolidated Messenger ","Pošiljalac","Pošta","Datum"]
[null,7000,"Datum",101,"Dimitrije Mihajlović",{"v":2500,"d":"2,500.00 RSD"},"A. Korporacija Datum ","2 stona računara","Kredit","Datum"]

{"sheet":"DOBROTV. AKCIJE I SPONZORSTVA","index":3,"n_rows":6,"n_cols":12,"rows_kept":6,"merged":[[1,1,1,11],[2,1,2,5],[2,6,2,11]]}
[]
[null,"DOBROTVORNE AKCIJE I SPONZORSTVA"]
[]
[null,"G/L kôd","Pokrenut je zahtev za proveru datuma","Tražio/la","Proverite iznos","Doprinos u prethodnoj godini","Primalac","Koristi se za","Potpisao/la","Kategorija","Metod distribucije","Datum datoteke"]
[null,12000,"Datum","Sara Mladenović",{"v":1000,"d":"1,000.00 RSD"},{"v":12,"d":"12.00 RSD"},"Akademija lepih umetnosti ","Stipendije","Tijana Stanković","Umetnost","Provera","Datum"]
[null,11000,"Datum","Sara Mladenović",{"v":2500,"d":"2,500.00 RSD"},{"v":0,"d":"0.00 RSD"},"Wingtip Toys ","Zajednica","Jovana Knežević","Zajednica","Provera","Datum"]